Workbook

Sheet Data and Analysis
A1: Engine: | C1: Lycoming IO-540A4D5 (CR 8.50:1; 260hp; 2700rpm; 404 lbs; 2000 hrs TBO)
A3: Common parameters: | F3: RatedMAP: | H3: 28.60 inHg | L3: LOP HP: | N3: 14.9 HP/USG | S3: EngineConstant1: | T3: 1.1166 | AB3: Summary of data set matching accuracies:
F4: RatedRPM: | H4: 2700 rpm | N4: =LOP_USG/3.785 -> (3.94 HP/lt) | Q4: EngineConstant2: | T4: 1.1035 | AE4: Data set 1 | AG4: Data set 2 | AI4: Data set 3 | AK4: Data set 4 | AM4: Data set 5 | AO4: Data set 6
F5: RatedHP: | H5: 260 HP | M5: QNH: | N5: 1013 hPa | Q5: EngineConstant3: | T5: -0.696 | AD5: Press alt | AE5: =S15 -> 0 ft | AG5: =S47 -> 5000 ft | AI5: =S79 -> 10000 ft | AK5: =S111 -> 15000 ft | AM5: =S143 -> 20000 ft | AO5: =S175 -> 25000 ft | AQ5: All charts
AD6: Temp | AE6: =S14 -> 59 degF | AG6: =S46 -> 41 degF | AI6: =S78 -> 23 degF | AK6: =S110 -> 5 degF | AM6: =S142 -> -13 degF | AO6: =S174 -> -31 degF
A7: Spot calculator:
C8: MAP: | D8: 28.60 inHg | G8: OAT: | H8: 59 degF | J8: =(H8-32)*5/9 -> (15 degC) | M8: Local QNH: | N8: 1013 hPa | S8: Fuel burn: | T8: 48.0 Lt/hr | W8: Power: | X8: =IF(N9="rop",((((RatedMAP-((RatedMAP-D8)*PwrCons1))/RatedMAP)*D9/RatedRPM)^PwrCons2)*((1+$T$5)*(N8/J9)-$T$5)*SQRT((519-3.58*H9/1000)/(460+H8)),T8*LOP_Litres/RatedHP) -> 100% | AD8: Avg. absolute % error: | AE8: =AM16 -> 0.04% | AG8: =AM48 -> -0.75% | AI8: =AM80 -> -0.54% | AK8: =AM112 -> 0.46% | AM8: =AM144 ->  | AO8: =AM176 ->  | AQ8: =AVERAGE(AE8:AO8) -> -0.19%
C9: RPM: | D9: 2700 rpm | G9: Press alt: | H9: 0 ft | J9: =((0.00000001187*(H9^2))-(0.001052*H9)+29.92)*33.865 -> (1013 hPa) | M9: Lean mode: | N9: RoP | X9: =CONCATENATE(ROUND(X8*RatedHP,0)," HP ",N9) -> 260 HP RoP | AD9: Max absolute % error: | AE9: =AM17 -> 1.66% | AG9: =AM49 -> 1.66% | AI9: =AM81 -> 1.66% | AK9: =AM113 -> 1.62% | AM9: =AM145 ->  | AO9: =AM177 ->  | AQ9: =MAX(AE9:AO9) -> 1.66%
AB11: FORMULA: | AD11: (((((RatedMAP-((RatedMAP-ActualMAP)*EngineConstant1))/RatedMAP)*ActualRPM/RatedRPM)^EngineConstant2) * ((1+EngineConstant3)*(QNH/P_abs)-EngineConstant3) * SQRT((519-3.58*pa/1000)/(460+ta))
A14: Data set ref: | C14: ISA conditions (15degC / 0ft PA) | M14: Chart parameters: | R14: Temp: | S14: 59 degF | AB14: =CONCATENATE("Derived data set for ",C14) -> Derived data set for ISA conditions (15degC / 0ft PA)
R15: Press alt: | S15: 0 ft | AC15: Selected parameter ranges for testing match accuracy:
S16: =((0.00000001187*(S15^2))-(0.001052*S15)+29.92)*33.865 -> (1013 hPa) | AE16: Min / max MAP: | AF16: 19 | AG16: 25 | AI16: Average absolute error: | AM16: =IF(SUM(BM33:CJ42)=0," ",AVERAGE(BM33:CJ42)) -> 0.04% | AZ16: Alt factor: | BA16: =((1+$T$5)*($N$5/$S16)-$T$5) -> 1.00 | BC16: LOP (USG) | BD16: HP | BE16: %HP | BF16: LOP (Litre) | BG16: HP | BH16: %HP
AE17: Min/max RPM: | AF17: 2100 | AG17: 2500 | AI17: Max absolute error: | AM17: =IF(AM16=" "," ",MAX(ABS(MIN(BM33:CJ42)),ABS(MAX(BM33:CJ42)))) -> 1.66% | AZ17: Temp factor: | BA17: =SQRT((519-3.58*$S15/1000)/(460+$S14)) -> 1.00 | BC17: 7 | BD17: =BC17*LOP_USG -> 104.3 | BE17: =BD17/RatedHP -> 40% | BF17: 25 | BG17: =BF17*LOP_Litres -> 98.41479524 | BH17: =BG17/RatedHP -> 38%
A18: ~HP ROP as per Power Chart | C18: Manifold Pressure (inHg) | AB18: ~HP as per rev Formula with pa&ta | AD18: Manifold Pressure (Hg) | BC18: 8 | BD18: =BC18*LOP_USG -> 119.2 | BE18: =BD18/RatedHP -> 46% | BF18: 30 | BG18: =BF18*LOP_Litres -> 118.0977543 | BH18: =BG18/RatedHP -> 45%
C19: 40 | D19: 39 | E19: 38 | F19: 37 | G19: 36 | H19: 35 | I19: 34 | J19: 33 | K19: 32 | L19: 31 | M19: 30 | N19: 29 | O19: 28 | P19: 27 | Q19: 26 | R19: 25 | S19: 24 | T19: 23 | U19: 22 | V19: 21 | W19: 20 | X19: 19 | Y19: 18 | Z19: 17 | AD19: 40 | AE19: 39 | AF19: 38 | AG19: 37 | AH19: 36 | AI19: 35 | AJ19: 34 | AK19: 33 | AL19: 32 | AM19: 31 | AN19: 30 | AO19: 29 | AP19: 28 | AQ19: 27 | AR19: 26 | AS19: 25 | AT19: 24 | AU19: 23 | AV19: 22 | AW19: 21 | AX19: 20 | AY19: 19 | AZ19: 18 | BA19: 17 | BC19: 9 | BD19: 134.1 | BE19: 52% | BF19: 35 | BG19: 137.7807133 | BH19: 53%
A20: RPM | B20: 2700 | N20: 269 | O20: 255 | P20: 243 | Q20: 232 | R20: 220 | S20: 208 | T20: 197 | U20: 185 | V20: 173 | W20: 161 | X20: 150 | Y20: 138 | Z20: 126 | AB20: RPM | AC20: 2700 | AD20: =IF(C20>0,((((RatedMAP-((RatedMAP-AD$19)*PwrCons1))/RatedMAP)*$AC20/RatedRPM)^PwrCons2)*((1+$T$5)*($N$5/$S$16)-$T$5)*SQRT((519-3.58*$S$15/1000)/(460+$S$14)),"") ->  | AE20: =IF(D20>0,((((RatedMAP-((RatedMAP-AE$19)*PwrCons1))/RatedMAP)*$AC20/RatedRPM)^PwrCons2)*((1+$T$5)*($N$5/$S$16)-$T$5)*SQRT((519-3.58*$S$15/1000)/(460+$S$14)),"") ->  | AF20: =IF(E20>0,((((RatedMAP-((RatedMAP-AF$19)*PwrCons1))/RatedMAP)*$AC20/RatedRPM)^PwrCons2)*((1+$T$5)*($N$5/$S$16)-$T$5)*SQRT((519-3.58*$S$15/1000)/(460+$S$14)),"") ->  | AG20: =IF(F20>0,((((RatedMAP-((RatedMAP-AG$19)*PwrCons1))/RatedMAP)*$AC20/RatedRPM)^PwrCons2)*((1+$T$5)*($N$5/$S$16)-$T$5)*SQRT((519-3.58*$S$15/1000)/(460+$S$14)),"") ->  | AH20: =IF(G20>0,((((RatedMAP-((RatedMAP-AH$19)*PwrCons1))/RatedMAP)*$AC20/RatedRPM)^PwrCons2)*((1+$T$5)*($N$5/$S$16)-$T$5)*SQRT((519-3.58*$S$15/1000)/(460+$S$14)),"") ->  | AI20: =IF(H20>0,((((RatedMAP-((RatedMAP-AI$19)*PwrCons1))/RatedMAP)*$AC20/RatedRPM)^PwrCons2)*((1+$T$5)*($N$5/$S$16)-$T$5)*SQRT((519-3.58*$S$15/1000)/(460+$S$14)),"") ->  | AJ20: =IF(I20>0,((((RatedMAP-((RatedMAP-AJ$19)*PwrCons1))/RatedMAP)*$AC20/RatedRPM)^PwrCons2)*((1+$T$5)*($N$5/$S$16)-$T$5)*SQRT((519-3.58*$S$15/1000)/(460+$S$14)),"") ->  | AK20: =IF(J20>0,((((RatedMAP-((RatedMAP-AK$19)*PwrCons1))/RatedMAP)*$AC20/RatedRPM)^PwrCons2)*((1+$T$5)*($N$5/$S$16)-$T$5)*SQRT((519-3.58*$S$15/1000)/(460+$S$14)),"") ->  | AL20: =IF(K20>0,((((RatedMAP-((RatedMAP-AL$19)*PwrCons1))/RatedMAP)*$AC20/RatedRPM)^PwrCons2)*((1+$T$5)*($N$5/$S$16)-$T$5)*SQRT((519-3.58*$S$15/1000)/(460+$S$14)),"") ->  | AM20: =IF(L20>0,((((RatedMAP-((RatedMAP-AM$19)*PwrCons1))/RatedMAP)*$AC20/RatedRPM)^PwrCons2)*((1+$T$5)*($N$5/$S$16)-$T$5)*SQRT((519-3.58*$S$15/1000)/(460+$S$14)),"") ->  | AN20: =IF(M20>0,((((RatedMAP-((RatedMAP-AN$19)*PwrCons1))/RatedMAP)*$AC20/RatedRPM)^PwrCons2)*((1+$T$5)*($N$5/$S$16)-$T$5)*SQRT((519-3.58*$S$15/1000)/(460+$S$14)),"") ->  | AO20: =IF(N20>0,((((RatedMAP-((RatedMAP-AO$19)*PwrCons1))/RatedMAP)*$AC20/RatedRPM)^PwrCons2)*((1+$T$5)*($N$5/$S$16)-$T$5)*SQRT((519-3.58*$S$15/1000)/(460+$S$14)),"") -> 102% | AP20: =IF(O20>0,((((RatedMAP-((RatedMAP-AP$19)*PwrCons1))/RatedMAP)*$AC20/RatedRPM)^PwrCons2)*((1+$T$5)*($N$5/$S$16)-$T$5)*SQRT((519-3.58*$S$15/1000)/(460+$S$14)),"") -> 97% | AQ20: =IF(P20>0,((((RatedMAP-((RatedMAP-AQ$19)*PwrCons1))/RatedMAP)*$AC20/RatedRPM)^PwrCons2)*((1+$T$5)*($N$5/$S$16)-$T$5)*SQRT((519-3.58*$S$15/1000)/(460+$S$14)),"") -> 93% | AR20: =IF(Q20>0,((((RatedMAP-((RatedMAP-AR$19)*PwrCons1))/RatedMAP)*$AC20/RatedRPM)^PwrCons2)*((1+$T$5)*($N$5/$S$16)-$T$5)*SQRT((519-3.58*$S$15/1000)/(460+$S$14)),"") -> 89% | AS20: =IF(R20>0,((((RatedMAP-((RatedMAP-AS$19)*PwrCons1))/RatedMAP)*$AC20/RatedRPM)^PwrCons2)*((1+$T$5)*($N$5/$S$16)-$T$5)*SQRT((519-3.58*$S$15/1000)/(460+$S$14)),"") -> 85% | AT20: =IF(S20>0,((((RatedMAP-((RatedMAP-AT$19)*PwrCons1))/RatedMAP)*$AC20/RatedRPM)^PwrCons2)*((1+$T$5)*($N$5/$S$16)-$T$5)*SQRT((519-3.58*$S$15/1000)/(460+$S$14)),"") -> 80% | AU20: =IF(T20>0,((((RatedMAP-((RatedMAP-AU$19)*PwrCons1))/RatedMAP)*$AC20/RatedRPM)^PwrCons2)*((1+$T$5)*($N$5/$S$16)-$T$5)*SQRT((519-3.58*$S$15/1000)/(460+$S$14)),"") -> 76% | AV20: =IF(U20>0,((((RatedMAP-((RatedMAP-AV$19)*PwrCons1))/RatedMAP)*$AC20/RatedRPM)^PwrCons2)*((1+$T$5)*($N$5/$S$16)-$T$5)*SQRT((519-3.58*$S$15/1000)/(460+$S$14)),"") -> 72% | AW20: =IF(V20>0,((((RatedMAP-((RatedMAP-AW$19)*PwrCons1))/RatedMAP)*$AC20/RatedRPM)^PwrCons2)*((1+$T$5)*($N$5/$S$16)-$T$5)*SQRT((519-3.58*$S$15/1000)/(460+$S$14)),"") -> 68% | AX20: =IF(W20>0,((((RatedMAP-((RatedMAP-AX$19)*PwrCons1))/RatedMAP)*$AC20/RatedRPM)^PwrCons2)*((1+$T$5)*($N$5/$S$16)-$T$5)*SQRT((519-3.58*$S$15/1000)/(460+$S$14)),"") -> 64% | AY20: =IF(X20>0,((((RatedMAP-((RatedMAP-AY$19)*PwrCons1))/RatedMAP)*$AC20/RatedRPM)^PwrCons2)*((1+$T$5)*($N$5/$S$16)-$T$5)*SQRT((519-3.58*$S$15/1000)/(460+$S$14)),"") -> 60% | AZ20: =IF(Y20>0,((((RatedMAP-((RatedMAP-AZ$19)*PwrCons1))/RatedMAP)*$AC20/RatedRPM)^PwrCons2)*((1+$T$5)*($N$5/$S$16)-$T$5)*SQRT((519-3.58*$S$15/1000)/(460+$S$14)),"") -> 55% | BA20: =IF(Z20>0,((((RatedMAP-((RatedMAP-BA$19)*PwrCons1))/RatedMAP)*$AC20/RatedRPM)^PwrCons2)*((1+$T$5)*($N$5/$S$16)-$T$5)*SQRT((519-3.58*$S$15/1000)/(460+$S$14)),"") -> 51% | BC20: 10 | BD20: 149 | BE20: 57% | BF20: 40 | BG20: 157.4636724 | BH20: 61%
B21: 2600 | N21: 260 | O21: 246 | P21: 236 | Q21: 225 | R21: 214 | S21: 203 | T21: 191 | U21: 180 | V21: 169 | W21: 158 | X21: 147 | Y21: 135 | Z21: 124 | AC21: 2600 | AO21: 98% | AP21: 93% | AQ21: 89% | AR21: 85% | AS21: 81% | AT21: 77% | AU21: 73% | AV21: 69% | AW21: 65% | AX21: 61% | AY21: 57% | AZ21: 53% | BA21: 49% | BC21: 11 | BD21: 163.9 | BE21: 63% | BF21: 45 | BG21: 177.1466314 | BH21: 68%
B22: 2500 | N22: 248 | O22: 236 | P22: 227 | Q22: 216 | R22: 205 | S22: 195 | T22: 184 | U22: 174 | V22: 163 | W22: 152 | X22: 141 | Y22: 131 | Z22: 120 | AC22: 2500 | AO22: 93% | AP22: 89% | AQ22: 86% | AR22: 82% | AS22: 78% | AT22: 74% | AU22: 70% | AV22: 66% | AW22: 62% | AX22: 58% | AY22: 55% | AZ22: 51% | BA22: 47% | BC22: 12 | BD22: 178.8 | BE22: 69% | BF22: 50 | BG22: 196.8295905 | BH22: 76%
B23: 2400 | N23: 239 | O23: 229 | P23: 218 | Q23: 207 | R23: 196 | S23: 186 | T23: 175 | U23: 165 | V23: 154 | W23: 144 | X23: 134 | Y23: 124 | Z23: 114 | AC23: 2400 | AO23: 89% | AP23: 86% | AQ23: 82% | AR23: 78% | AS23: 74% | AT23: 71% | AU23: 67% | AV23: 63% | AW23: 60% | AX23: 56% | AY23: 52% | AZ23: 49% | BA23: 45% | BC23: 13 | BD23: 193.7 | BE23: 75% | BF23: 55 | BG23: 216.5125495 | BH23: 83%
B24: 2300 | N24: 227 | O24: 217 | P24: 207 | Q24: 197 | R24: 187 | S24: 177 | T24: 167 | U24: 157 | V24: 147 | W24: 137 | X24: 127 | Y24: 117 | Z24: 107 | AC24: 2300 | AO24: 85% | AP24: 82% | AQ24: 78% | AR24: 74% | AS24: 71% | AT24: 67% | AU24: 64% | AV24: 60% | AW24: 57% | AX24: 53% | AY24: 50% | AZ24: 46% | BA24: 43% | BC24: 14 | BD24: 208.6 | BE24: 80% | BF24: 60 | BG24: 236.1955086 | BH24: 91%
B25: 2200 | N25: 215 | O25: 206 | P25: 196 | Q25: 187 | R25: 177 | S25: 168 | T25: 158 | U25: 149 | V25: 139 | W25: 130 | X25: 120 | Y25: 111 | Z25: 101 | AC25: 2200 | AO25: 81% | AP25: 78% | AQ25: 74% | AR25: 71% | AS25: 67% | AT25: 64% | AU25: 61% | AV25: 57% | AW25: 54% | AX25: 51% | AY25: 48% | AZ25: 44% | BA25: 41% | BC25: 15 | BD25: 223.5 | BE25: 86% | BF25: 65 | BG25: 255.8784676 | BH25: 98%
B26: 2100 | N26: 202 | O26: 193 | P26: 185 | Q26: 176 | R26: 167 | S26: 158 | T26: 149 | U26: 140 | V26: 131 | W26: 122 | X26: 113 | Y26: 104 | Z26: 95 | AC26: 2100 | AO26: 77% | AP26: 74% | AQ26: 71% | AR26: 67% | AS26: 64% | AT26: 61% | AU26: 58% | AV26: 55% | AW26: 51% | AX26: 48% | AY26: 45% | AZ26: 42% | BA26: 39% | BC26: 16 | BD26: 238.4 | BE26: 92% | BF26: 70 | BG26: 275.5614267 | BH26: 106%
B27: 2000 | N27: 191 | O27: 182 | P27: 174 | Q27: 165 | R27: 157 | S27: 148 | T27: 140 | U27: 131 | V27: 123 | W27: 114 | X27: 106 | Y27: 97 | Z27: 89 | AC27: 2000 | AO27: 73% | AP27: 70% | AQ27: 67% | AR27: 64% | AS27: 61% | AT27: 58% | AU27: 55% | AV27: 52% | AW27: 49% | AX27: 46% | AY27: 43% | AZ27: 40% | BA27: 37% | BC27: 17 | BD27: 253.3 | BE27: 97% | BF27: 75 | BG27: 295.2443857 | BH27: 114%
B28: 1900 | N28: 180 | O28: 172 | P28: 164 | Q28: 156 | R28: 148 | S28: 140 | T28: 132 | U28: 124 | V28: 116 | W28: 108 | X28: 100 | Y28: 92 | Z28: 83 | AC28: 1900 | AO28: 69% | AP28: 66% | AQ28: 63% | AR28: 60% | AS28: 57% | AT28: 55% | AU28: 52% | AV28: 49% | AW28: 46% | AX28: 43% | AY28: 40% | AZ28: 38% | BA28: 35% | BC28: 18 | BD28: 268.2 | BE28: 103% | BF28: 80 | BG28: 314.9273448 | BH28: 121%
B29: 1800 | N29: 169 | O29: 161 | P29: 153 | Q29: 146 | R29: 138 | S29: 131 | T29: 124 | U29: 116 | V29: 109 | W29: 101 | X29: 94 | Y29: 87 | Z29: 79 | AC29: 1800 | AO29: 65% | AP29: 62% | AQ29: 60% | AR29: 57% | AS29: 54% | AT29: 51% | AU29: 49% | AV29: 46% | AW29: 43% | AX29: 41% | AY29: 38% | AZ29: 35% | BA29: 33% | BC29: 19 | BD29: 283.1 | BE29: 109% | BF29: 85 | BG29: 334.6103038 | BH29: 129%
A31: HP ROP % of RatedHP | C31: Manifold Pressure (inHg) | AB31: Difference | BK31: Difference for selected params
C32: 40 | D32: 39 | E32: 38 | F32: 37 | G32: 36 | H32: 35 | I32: 34 | J32: 33 | K32: 32 | L32: 31 | M32: 30 | N32: 29 | O32: 28 | P32: 27 | Q32: 26 | R32: 25 | S32: 24 | T32: 23 | U32: 22 | V32: 21 | W32: 20 | X32: 19 | Y32: 18 | Z32: 17 | AD32: 40 | AE32: 39 | AF32: 38 | AG32: 37 | AH32: 36 | AI32: 35 | AJ32: 34 | AK32: 33 | AL32: 32 | AM32: 31 | AN32: 30 | AO32: 29 | AP32: 28 | AQ32: 27 | AR32: 26 | AS32: 25 | AT32: 24 | AU32: 23 | AV32: 22 | AW32: 21 | AX32: 20 | AY32: 19 | AZ32: 18 | BA32: 17 | BM32: 40 | BN32: 39 | BO32: 38 | BP32: 37 | BQ32: 36 | BR32: 35 | BS32: 34 | BT32: 33 | BU32: 32 | BV32: 31 | BW32: 30 | BX32: 29 | BY32: 28 | BZ32: 27 | CA32: 26 | CB32: 25 | CC32: 24 | CD32: 23 | CE32: 22 | CF32: 21 | CG32: 20 | CH32: 19 | CI32: 18 | CJ32: 17
A33: RPM | B33: 2700 | C33: =IF(C20>0,C20/RatedHP,"") ->  | N33: 103% | O33: 98% | P33: 93% | Q33: 89% | R33: 85% | S33: 80% | T33: 76% | U33: 71% | V33: 67% | W33: 62% | X33: 58% | Y33: 53% | Z33: 48% | AB33: RPM | AC33: 2700 | AD33: =IF(C20>0,AD20-C33,"") ->  | AO33: -2% | AP33: -1% | AQ33: -0% | AR33: -0% | AS33: -0% | AT33: 0% | AU33: 0% | AV33: 1% | AW33: 1% | AX33: 2% | AY33: 2% | AZ33: 2% | BA33: 3% | BK33: RPM | BL33: 2700 | BM33: =IF(AND(BM$32<=$AG$16,BM$32>=$AF$16,$BL33<=$AG$17,$BL33>=$AF$17),AD33," ") ->  | BN33: =IF(AND(BN$32<=$AG$16,BN$32>=$AF$16,$BL33<=$AG$17,$BL33>=$AF$17),AE33," ") -> 
B34: 2600 | C34: =IF(C21>0,C21/RatedHP,"") ->  | N34: 100% | O34: 95% | P34: 91% | Q34: 87% | R34: 82% | S34: 78% | T34: 73% | U34: 69% | V34: 65% | W34: 61% | X34: 57% | Y34: 52% | Z34: 48% | AC34: 2600 | AO34: -2% | AP34: -1% | AQ34: -1% | AR34: -1% | AS34: -1% | AT34: -1% | AU34: -0% | AV34: -0% | AW34: 0% | AX34: 0% | AY34: 1% | AZ34: 1% | BA34: 2% | BL34: 2600 | BM34: =IF(AND(BM$32<=$AG$16,BM$32>=$AF$16,$BL34<=$AG$17,$BL34>=$AF$17),AD34," ") -> 
B35: 2500 | C35: =IF(C22>0,C22/RatedHP,"") ->  | N35: 95% | O35: 91% | P35: 87% | Q35: 83% | R35: 79% | S35: 75% | T35: 71% | U35: 67% | V35: 63% | W35: 58% | X35: 54% | Y35: 50% | Z35: 46% | AC35: 2500 | AO35: -2% | AP35: -1% | AQ35: -2% | AR35: -1% | AS35: -1% | AT35: -1% | AU35: -1% | AV35: -1% | AW35: -0% | AX35: 0% | AY35: 0% | AZ35: 1% | BA35: 1% | BL35: 2500 | CB35: -1% | CC35: -1% | CD35: -1% | CE35: -1% | CF35: -0% | CG35: 0% | CH35: 0%
B36: 2400 | C36: =IF(C23>0,C23/RatedHP,"") ->  | N36: 92% | O36: 88% | P36: 84% | Q36: 80% | R36: 75% | S36: 72% | T36: 67% | U36: 63% | V36: 59% | W36: 55% | X36: 52% | Y36: 48% | Z36: 44% | AC36: 2400 | AO36: -3% | AP36: -3% | AQ36: -2% | AR36: -2% | AS36: -1% | AT36: -1% | AU36: -0% | AV36: -0% | AW36: 0% | AX36: 1% | AY36: 1% | AZ36: =IF(Y23>0,AZ23-Y36,"") -> 1% | BA36: =IF(Z23>0,BA23-Z36,"") -> 1% | BL36: 2400 | CB36: -1% | CC36: -1% | CD36: -0% | CE36: -0% | CF36: 0% | CG36: 1% | CH36: 1%
B37: 2300 | C37: =IF(C24>0,C24/RatedHP,"") ->  | N37: 87% | O37: 83% | P37: 80% | Q37: 76% | R37: 72% | S37: 68% | T37: 64% | U37: 60% | V37: 57% | W37: 53% | X37: 49% | Y37: 45% | Z37: 41% | AC37: 2300 | AO37: -2% | AP37: -2% | AQ37: -2% | AR37: -1% | AS37: -1% | AT37: -1% | AU37: -0% | AV37: -0% | AW37: 0% | AX37: 1% | AY37: 1% | AZ37: =IF(Y24>0,AZ24-Y37,"") -> 1% | BA37: =IF(Z24>0,BA24-Z37,"") -> 2% | BL37: 2300 | CB37: -1% | CC37: -1% | CD37: -0% | CE37: -0% | CF37: 0% | CG37: 1% | CH37: 1%
B38: 2200 | C38: =IF(C25>0,C25/RatedHP,"") ->  | N38: 83% | O38: 79% | P38: 75% | Q38: 72% | R38: 68% | S38: 65% | T38: 61% | U38: 57% | V38: 53% | W38: 50% | X38: 46% | Y38: 43% | Z38: 39% | AC38: 2200 | AO38: -2% | AP38: -2% | AQ38: -1% | AR38: -1% | AS38: -1% | AT38: -1% | AU38: -0% | AV38: 0% | AW38: 1% | AX38: 1% | AY38: 1% | AZ38: 2% | BA38: 2% | BL38: 2200 | CB38: -1% | CC38: -1% | CD38: -0% | CE38: 0% | CF38: 1% | CG38: 1% | CH38: 1%
B39: 2100 | C39: =IF(C26>0,C26/RatedHP,"") ->  | N39: 78% | O39: 74% | P39: 71% | Q39: 68% | R39: 64% | S39: 61% | T39: 57% | U39: 54% | V39: 50% | W39: 47% | X39: 43% | Y39: 40% | Z39: 37% | AC39: 2100 | AO39: -1% | AP39: -0% | AQ39: -1% | AR39: -0% | AS39: -0% | AT39: 0% | AU39: 0% | AV39: 1% | AW39: 1% | AX39: 1% | AY39: 2% | AZ39: 2% | BA39: 2% | BL39: 2100 | CB39: -0% | CC39: 0% | CD39: 0% | CE39: 1% | CF39: 1% | CG39: 1% | CH39: 2%
B40: 2000 | C40: =IF(C27>0,C27/RatedHP,"") ->  | N40: 73% | O40: 70% | P40: 67% | Q40: 63% | R40: 60% | S40: 57% | T40: 54% | U40: 50% | V40: 47% | W40: 44% | X40: 41% | Y40: 37% | Z40: 34% | AC40: 2000 | AO40: -0% | AP40: -0% | AQ40: -0% | AR40: 0% | AS40: 0% | AT40: 1% | AU40: 1% | AV40: 1% | AW40: 1% | AX40: 2% | AY40: 2% | AZ40: 3% | BA40: 3% | BL40: 2000
B41: 1900 | C41: =IF(C28>0,C28/RatedHP,"") ->  | N41: 69% | O41: 66% | P41: 63% | Q41: 60% | R41: 57% | S41: 54% | T41: 51% | U41: 48% | V41: 45% | W41: 42% | X41: 38% | Y41: 35% | Z41: 32% | AC41: 1900 | AO41: -0% | AP41: -0% | AQ41: 0% | AR41: 0% | AS41: 0% | AT41: 1% | AU41: 1% | AV41: 1% | AW41: 1% | AX41: 2% | AY41: =IF(X28>0,AY28-X41,"") -> 2% | AZ41: 2% | BA41: 3% | BL41: 1900
B42: 1800 | C42: =IF(C29>0,C29/RatedHP,"") ->  | N42: 65% | O42: 62% | P42: 59% | Q42: 56% | R42: 53% | S42: 50% | T42: 48% | U42: 45% | V42: 42% | W42: 39% | X42: 36% | Y42: 33% | Z42: 30% | AC42: 1800 | AO42: 0% | AP42: 0% | AQ42: 1% | AR42: 1% | AS42: 1% | AT42: 1% | AU42: 1% | AV42: 1% | AW42: 1% | AX42: 2% | AY42: =IF(X29>0,AY29-X42,"") -> 2% | AZ42: 2% | BA42: 2% | BL42: 1800
A46: Data set ref: | C46: ISA conditions (5degC / 5000ft PA) | M46: Chart parameters: | R46: Temp: | S46: 41 degF | AB46: =CONCATENATE("Derived data set for ",C46) -> Derived data set for ISA conditions (5degC / 5000ft PA)
R47: Press alt: | S47: 5000 ft | AC47: Selected parameter ranges for testing match accuracy:
S48: =((0.00000001187*(S47^2))-(0.001052*S47)+29.92)*33.865 -> (845 hPa) | AE48: Min / max MAP: | AF48: 18 | AG48: 24 | AI48: Average absolute error: | AM48: =IF(SUM(BM65:CJ74)=0," ",AVERAGE(BM65:CJ74)) -> -0.75% | AZ48: Alt factor: | BA48: =((1+$T$5)*($N$5/$S48)-$T$5) -> 1.06
A49: ISA (5degC / 5000ft PA) | AE49: Min/max RPM: | AF49: 2100 | AG49: 2500 | AI49: Max absolute error: | AM49: =IF(AM48=" "," ",MAX(ABS(MIN(BM65:CJ74)),ABS(MAX(BM65:CJ74)))) -> 1.66% | AZ49: Temp factor: | BA49: =SQRT((519-3.58*$S47/1000)/(460+$S46)) -> 1.00
A50: ~HP ROP as per Power Chart | C50: Manifold Pressure (inHg) | AB50: ~HP as per rev Formula with pa&ta | AD50: Manifold Pressure (Hg)
C51: 40 | D51: 39 | E51: 38 | F51: 37 | G51: 36 | H51: 35 | I51: 34 | J51: 33 | K51: 32 | L51: 31 | M51: 30 | N51: 29 | O51: 28 | P51: 27 | Q51: 26 | R51: 25 | S51: 24 | T51: 23 | U51: 22 | V51: 21 | W51: 20 | X51: 19 | Y51: 18 | Z51: 17 | AD51: 40 | AE51: 39 | AF51: 38 | AG51: 37 | AH51: 36 | AI51: 35 | AJ51: 34 | AK51: 33 | AL51: 32 | AM51: 31 | AN51: 30 | AO51: 29 | AP51: 28 | AQ51: 27 | AR51: 26 | AS51: 25 | AT51: 24 | AU51: 23 | AV51: 22 | AW51: 21 | AX51: 20 | AY51: 19 | AZ51: 18 | BA51: 17
A52: RPM | B52: 2700 | N52: 277 | O52: 266 | P52: 256 | Q52: 245 | R52: 233 | S52: 221 | T52: 210 | U52: 198 | V52: 187 | W52: 176 | X52: 164 | Y52: 152 | Z52: 140 | AB52: RPM | AC52: 2700 | AD52: =IF(C52>0,((((RatedMAP-((RatedMAP-AD$19)*PwrCons1))/RatedMAP)*$AC52/RatedRPM)^PwrCons2)*((1+$T$5)*($N$5/$S$48)-$T$5)*SQRT((519-3.58*$S$47/1000)/(460+$S$46)),"") ->  | AE52: =IF(D52>0,((((RatedMAP-((RatedMAP-AE$19)*PwrCons1))/RatedMAP)*$AC52/RatedRPM)^PwrCons2)*((1+$T$5)*($N$5/$S$48)-$T$5)*SQRT((519-3.58*$S$47/1000)/(460+$S$46)),"") ->  | AF52: =IF(E52>0,((((RatedMAP-((RatedMAP-AF$19)*PwrCons1))/RatedMAP)*$AC52/RatedRPM)^PwrCons2)*((1+$T$5)*($N$5/$S$48)-$T$5)*SQRT((519-3.58*$S$47/1000)/(460+$S$46)),"") ->  | AG52: =IF(F52>0,((((RatedMAP-((RatedMAP-AG$19)*PwrCons1))/RatedMAP)*$AC52/RatedRPM)^PwrCons2)*((1+$T$5)*($N$5/$S$48)-$T$5)*SQRT((519-3.58*$S$47/1000)/(460+$S$46)),"") ->  | AH52: =IF(G52>0,((((RatedMAP-((RatedMAP-AH$19)*PwrCons1))/RatedMAP)*$AC52/RatedRPM)^PwrCons2)*((1+$T$5)*($N$5/$S$48)-$T$5)*SQRT((519-3.58*$S$47/1000)/(460+$S$46)),"") ->  | AI52: =IF(H52>0,((((RatedMAP-((RatedMAP-AI$19)*PwrCons1))/RatedMAP)*$AC52/RatedRPM)^PwrCons2)*((1+$T$5)*($N$5/$S$48)-$T$5)*SQRT((519-3.58*$S$47/1000)/(460+$S$46)),"") ->  | AJ52: =IF(I52>0,((((RatedMAP-((RatedMAP-AJ$19)*PwrCons1))/RatedMAP)*$AC52/RatedRPM)^PwrCons2)*((1+$T$5)*($N$5/$S$48)-$T$5)*SQRT((519-3.58*$S$47/1000)/(460+$S$46)),"") ->  | AK52: =IF(J52>0,((((RatedMAP-((RatedMAP-AK$19)*PwrCons1))/RatedMAP)*$AC52/RatedRPM)^PwrCons2)*((1+$T$5)*($N$5/$S$48)-$T$5)*SQRT((519-3.58*$S$47/1000)/(460+$S$46)),"") ->  | AL52: =IF(K52>0,((((RatedMAP-((RatedMAP-AL$19)*PwrCons1))/RatedMAP)*$AC52/RatedRPM)^PwrCons2)*((1+$T$5)*($N$5/$S$48)-$T$5)*SQRT((519-3.58*$S$47/1000)/(460+$S$46)),"") ->  | AM52: =IF(L52>0,((((RatedMAP-((RatedMAP-AM$19)*PwrCons1))/RatedMAP)*$AC52/RatedRPM)^PwrCons2)*((1+$T$5)*($N$5/$S$48)-$T$5)*SQRT((519-3.58*$S$47/1000)/(460+$S$46)),"") ->  | AN52: =IF(M52>0,((((RatedMAP-((RatedMAP-AN$19)*PwrCons1))/RatedMAP)*$AC52/RatedRPM)^PwrCons2)*((1+$T$5)*($N$5/$S$48)-$T$5)*SQRT((519-3.58*$S$47/1000)/(460+$S$46)),"") ->  | AO52: =IF(N52>0,((((RatedMAP-((RatedMAP-AO$19)*PwrCons1))/RatedMAP)*$AC52/RatedRPM)^PwrCons2)*((1+$T$5)*($N$5/$S$48)-$T$5)*SQRT((519-3.58*$S$47/1000)/(460+$S$46)),"") -> 108% | AP52: =IF(O52>0,((((RatedMAP-((RatedMAP-AP$19)*PwrCons1))/RatedMAP)*$AC52/RatedRPM)^PwrCons2)*((1+$T$5)*($N$5/$S$48)-$T$5)*SQRT((519-3.58*$S$47/1000)/(460+$S$46)),"") -> 103% | AQ52: =IF(P52>0,((((RatedMAP-((RatedMAP-AQ$19)*PwrCons1))/RatedMAP)*$AC52/RatedRPM)^PwrCons2)*((1+$T$5)*($N$5/$S$48)-$T$5)*SQRT((519-3.58*$S$47/1000)/(460+$S$46)),"") -> 99% | AR52: =IF(Q52>0,((((RatedMAP-((RatedMAP-AR$19)*PwrCons1))/RatedMAP)*$AC52/RatedRPM)^PwrCons2)*((1+$T$5)*($N$5/$S$48)-$T$5)*SQRT((519-3.58*$S$47/1000)/(460+$S$46)),"") -> 94% | AS52: =IF(R52>0,((((RatedMAP-((RatedMAP-AS$19)*PwrCons1))/RatedMAP)*$AC52/RatedRPM)^PwrCons2)*((1+$T$5)*($N$5/$S$48)-$T$5)*SQRT((519-3.58*$S$47/1000)/(460+$S$46)),"") -> 90% | AT52: =IF(S52>0,((((RatedMAP-((RatedMAP-AT$19)*PwrCons1))/RatedMAP)*$AC52/RatedRPM)^PwrCons2)*((1+$T$5)*($N$5/$S$48)-$T$5)*SQRT((519-3.58*$S$47/1000)/(460+$S$46)),"") -> 85% | AU52: =IF(T52>0,((((RatedMAP-((RatedMAP-AU$19)*PwrCons1))/RatedMAP)*$AC52/RatedRPM)^PwrCons2)*((1+$T$5)*($N$5/$S$48)-$T$5)*SQRT((519-3.58*$S$47/1000)/(460+$S$46)),"") -> 81% | AV52: =IF(U52>0,((((RatedMAP-((RatedMAP-AV$19)*PwrCons1))/RatedMAP)*$AC52/RatedRPM)^PwrCons2)*((1+$T$5)*($N$5/$S$48)-$T$5)*SQRT((519-3.58*$S$47/1000)/(460+$S$46)),"") -> 76% | AW52: =IF(V52>0,((((RatedMAP-((RatedMAP-AW$19)*PwrCons1))/RatedMAP)*$AC52/RatedRPM)^PwrCons2)*((1+$T$5)*($N$5/$S$48)-$T$5)*SQRT((519-3.58*$S$47/1000)/(460+$S$46)),"") -> 72% | AX52: =IF(W52>0,((((RatedMAP-((RatedMAP-AX$19)*PwrCons1))/RatedMAP)*$AC52/RatedRPM)^PwrCons2)*((1+$T$5)*($N$5/$S$48)-$T$5)*SQRT((519-3.58*$S$47/1000)/(460+$S$46)),"") -> 68% | AY52: =IF(X52>0,((((RatedMAP-((RatedMAP-AY$19)*PwrCons1))/RatedMAP)*$AC52/RatedRPM)^PwrCons2)*((1+$T$5)*($N$5/$S$48)-$T$5)*SQRT((519-3.58*$S$47/1000)/(460+$S$46)),"") -> 63% | AZ52: =IF(Y52>0,((((RatedMAP-((RatedMAP-AZ$19)*PwrCons1))/RatedMAP)*$AC52/RatedRPM)^PwrCons2)*((1+$T$5)*($N$5/$S$48)-$T$5)*SQRT((519-3.58*$S$47/1000)/(460+$S$46)),"") -> 59% | BA52: =IF(Z52>0,((((RatedMAP-((RatedMAP-BA$19)*PwrCons1))/RatedMAP)*$AC52/RatedRPM)^PwrCons2)*((1+$T$5)*($N$5/$S$48)-$T$5)*SQRT((519-3.58*$S$47/1000)/(460+$S$46)),"") -> 55%
B53: 2600 | N53: 267 | O53: 256 | P53: 246 | Q53: 237 | R53: 224 | S53: 213 | T53: 202 | U53: 191 | V53: 180 | W53: 170 | X53: 158 | Y53: 146 | Z53: 136 | AC53: 2600 | AO53: 103% | AP53: 99% | AQ53: 95% | AR53: 90% | AS53: 86% | AT53: 82% | AU53: 77% | AV53: 73% | AW53: 69% | AX53: 65% | AY53: 61% | AZ53: 56% | BA53: 52%
B54: 2500 | N54: 257 | O54: 247 | P54: 237 | Q54: 227 | R54: 216 | S54: 205 | T54: 195 | U54: 184 | V54: 172 | W54: 162 | X54: 151 | Y54: 141 | Z54: 131 | AC54: 2500 | AO54: 99% | AP54: 95% | AQ54: 91% | AR54: 87% | AS54: 82% | AT54: 78% | AU54: 74% | AV54: 70% | AW54: 66% | AX54: 62% | AY54: 58% | AZ54: 54% | BA54: 50%
B55: 2400 | N55: 247 | O55: 237 | P55: 227 | Q55: 217 | R55: 207 | S55: 197 | T55: 187 | U55: 177 | V55: 166 | W55: 156 | X55: 146 | Y55: 136 | Z55: 126 | AC55: 2400 | AO55: 95% | AP55: 91% | AQ55: 87% | AR55: 83% | AS55: 79% | AT55: 75% | AU55: 71% | AV55: 67% | AW55: 63% | AX55: 59% | AY55: 55% | AZ55: 52% | BA55: 48%
B56: 2300 | N56: 237 | O56: 228 | P56: 218 | Q56: 209 | R56: 199 | S56: 190 | T56: 180 | U56: 170 | V56: 160 | W56: 150 | X56: 140 | Y56: 130 | Z56: 120 | AC56: 2300 | AO56: 90% | AP56: 87% | AQ56: 83% | AR56: 79% | AS56: 75% | AT56: 71% | AU56: 68% | AV56: 64% | AW56: 60% | AX56: 57% | AY56: 53% | AZ56: 49% | BA56: 46%
B57: 2200 | N57: 227 | O57: 218 | P57: 209 | Q57: 200 | R57: 190 | S57: 180 | T57: 171 | U57: 162 | V57: 152 | W57: 142 | X57: 132 | Y57: 122 | Z57: 112 | AC57: 2200 | AO57: 86% | AP57: 82% | AQ57: 79% | AR57: 75% | AS57: 72% | AT57: 68% | AU57: 64% | AV57: 61% | AW57: 57% | AX57: 54% | AY57: 50% | AZ57: 47% | BA57: 43%
B58: 2100 | N58: 216 | O58: 207 | P58: 198 | Q58: 189 | R58: 180 | S58: 170 | T58: 161 | U58: 152 | V58: 143 | W58: 134 | X58: 125 | Y58: 115 | Z58: 106 | AC58: 2100 | AO58: 82% | AP58: 78% | AQ58: 75% | AR58: 71% | AS58: 68% | AT58: 65% | AU58: 61% | AV58: 58% | AW58: 54% | AX58: 51% | AY58: 48% | AZ58: 45% | BA58: 41%
B59: 2000 | N59: 205 | O59: 196 | P59: 187 | Q59: 178 | R59: 169 | S59: 160 | T59: 151 | U59: 142 | V59: 134 | W59: 126 | X59: 117 | Y59: 108 | Z59: 100 | AC59: 2000 | AO59: 77% | AP59: 74% | AQ59: 71% | AR59: 68% | AS59: 64% | AT59: 61% | AU59: 58% | AV59: 55% | AW59: 52% | AX59: 48% | AY59: 45% | AZ59: 42% | BA59: 39%
B60: 1900 | N60: 193 | O60: 184 | P60: 176 | Q60: 168 | R60: 159 | S60: 150 | T60: 142 | U60: 134 | V60: 126 | W60: 118 | X60: 110 | Y60: 102 | Z60: 94 | AC60: 1900 | AO60: 73% | AP60: 70% | AQ60: 67% | AR60: 64% | AS60: 61% | AT60: 58% | AU60: 55% | AV60: 52% | AW60: 49% | AX60: 46% | AY60: 43% | AZ60: 40% | BA60: 37%
B61: 1800 | N61: 182 | O61: 174 | P61: 166 | Q61: 158 | R61: 150 | S61: 141 | T61: 133 | U61: 126 | V61: 119 | W61: 111 | X61: 103 | Y61: 96 | Z61: 88 | AC61: 1800 | AO61: 69% | AP61: 66% | AQ61: 63% | AR61: 60% | AS61: 57% | AT61: 54% | AU61: 52% | AV61: 49% | AW61: 46% | AX61: 43% | AY61: 40% | AZ61: 38% | BA61: 35%
A63: HP ROP % of RatedHP | C63: Manifold Pressure (inHg) | AB63: Difference | AD63: Manifold Pressure (Hg) | BK63: Difference for selected params
C64: 40 | D64: 39 | E64: 38 | F64: 37 | G64: 36 | H64: 35 | I64: 34 | J64: 33 | K64: 32 | L64: 31 | M64: 30 | N64: 29 | O64: 28 | P64: 27 | Q64: 26 | R64: 25 | S64: 24 | T64: 23 | U64: 22 | V64: 21 | W64: 20 | X64: 19 | Y64: 18 | Z64: 17 | AD64: 40 | AE64: 39 | AF64: 38 | AG64: 37 | AH64: 36 | AI64: 35 | AJ64: 34 | AK64: 33 | AL64: 32 | AM64: 31 | AN64: 30 | AO64: 29 | AP64: 28 | AQ64: 27 | AR64: 26 | AS64: 25 | AT64: 24 | AU64: 23 | AV64: 22 | AW64: 21 | AX64: 20 | AY64: 19 | AZ64: 18 | BA64: 17 | BM64: 40 | BN64: 39 | BO64: 38 | BP64: 37 | BQ64: 36 | BR64: 35 | BS64: 34 | BT64: 33 | BU64: 32 | BV64: 31 | BW64: 30 | BX64: 29 | BY64: 28 | BZ64: 27 | CA64: 26 | CB64: 25 | CC64: 24 | CD64: 23 | CE64: 22 | CF64: 21 | CG64: 20 | CH64: 19 | CI64: 18 | CJ64: 17
A65: RPM | B65: 2700 | C65: =IF(C52>0,C52/RatedHP,"") ->  | N65: 107% | O65: 102% | P65: 98% | Q65: 94% | R65: 90% | S65: 85% | T65: 81% | U65: 76% | V65: 72% | W65: 68% | X65: 63% | Y65: 58% | Z65: 54% | AB65: RPM | AC65: 2700 | AD65: =IF(C52>0,AD52-C65,"") ->  | AE65: =IF(D52>0,AE52-D65,"") ->  | AF65: =IF(E52>0,AF52-E65,"") ->  | AG65: =IF(F52>0,AG52-F65,"") ->  | AH65: =IF(G52>0,AH52-G65,"") ->  | AI65: =IF(H52>0,AI52-H65,"") ->  | AJ65: =IF(I52>0,AJ52-I65,"") ->  | AK65: =IF(J52>0,AK52-J65,"") ->  | AL65: =IF(K52>0,AL52-K65,"") ->  | AM65: =IF(L52>0,AM52-L65,"") ->  | AN65: =IF(M52>0,AN52-M65,"") ->  | AO65: =IF(N52>0,AO52-N65,"") -> 1% | AP65: =IF(O52>0,AP52-O65,"") -> 1% | AQ65: =IF(P52>0,AQ52-P65,"") -> 0% | AR65: =IF(Q52>0,AR52-Q65,"") -> -0% | AS65: =IF(R52>0,AS52-R65,"") -> 0% | AT65: =IF(S52>0,AT52-S65,"") -> 0% | AU65: =IF(T52>0,AU52-T65,"") -> 0% | AV65: =IF(U52>0,AV52-U65,"") -> 0% | AW65: =IF(V52>0,AW52-V65,"") -> -0% | AX65: =IF(W52>0,AX52-W65,"") -> -0% | AY65: =IF(X52>0,AY52-X65,"") -> 0% | AZ65: =IF(Y52>0,AZ52-Y65,"") -> 0% | BA65: 1% | BK65: RPM | BL65: 2700 | BM65: =IF(AND(BM$64<=$AG$48,BM$64>=$AF$48,$BL65<=$AG$49,$BL65>=$AF$49),AD65," ") ->  | BN65: =IF(AND(BN$64<=$AG$48,BN$64>=$AF$48,$BL65<=$AG$49,$BL65>=$AF$49),AE65," ") ->  | BO65: =IF(AND(BO$64<=$AG$48,BO$64>=$AF$48,$BL65<=$AG$49,$BL65>=$AF$49),AF65," ") ->  | BP65: =IF(AND(BP$64<=$AG$48,BP$64>=$AF$48,$BL65<=$AG$49,$BL65>=$AF$49),AG65," ") ->  | BQ65: =IF(AND(BQ$64<=$AG$48,BQ$64>=$AF$48,$BL65<=$AG$49,$BL65>=$AF$49),AH65," ") ->  | BR65: =IF(AND(BR$64<=$AG$48,BR$64>=$AF$48,$BL65<=$AG$49,$BL65>=$AF$49),AI65," ") ->  | BS65: =IF(AND(BS$64<=$AG$48,BS$64>=$AF$48,$BL65<=$AG$49,$BL65>=$AF$49),AJ65," ") ->  | BT65: =IF(AND(BT$64<=$AG$48,BT$64>=$AF$48,$BL65<=$AG$49,$BL65>=$AF$49),AK65," ") ->  | BU65: =IF(AND(BU$64<=$AG$48,BU$64>=$AF$48,$BL65<=$AG$49,$BL65>=$AF$49),AL65," ") ->  | BV65: =IF(AND(BV$64<=$AG$48,BV$64>=$AF$48,$BL65<=$AG$49,$BL65>=$AF$49),AM65," ") ->  | BW65: =IF(AND(BW$64<=$AG$48,BW$64>=$AF$48,$BL65<=$AG$49,$BL65>=$AF$49),AN65," ") ->  | BX65: =IF(AND(BX$64<=$AG$48,BX$64>=$AF$48,$BL65<=$AG$49,$BL65>=$AF$49),AO65," ") ->  | BY65: =IF(AND(BY$64<=$AG$48,BY$64>=$AF$48,$BL65<=$AG$49,$BL65>=$AF$49),AP65," ") ->  | BZ65: =IF(AND(BZ$64<=$AG$48,BZ$64>=$AF$48,$BL65<=$AG$49,$BL65>=$AF$49),AQ65," ") ->  | CA65: =IF(AND(CA$64<=$AG$48,CA$64>=$AF$48,$BL65<=$AG$49,$BL65>=$AF$49),AR65," ") ->  | CB65: =IF(AND(CB$64<=$AG$48,CB$64>=$AF$48,$BL65<=$AG$49,$BL65>=$AF$49),AS65," ") ->  | CC65: =IF(AND(CC$64<=$AG$48,CC$64>=$AF$48,$BL65<=$AG$49,$BL65>=$AF$49),AT65," ") ->  | CD65: =IF(AND(CD$64<=$AG$48,CD$64>=$AF$48,$BL65<=$AG$49,$BL65>=$AF$49),AU65," ") ->  | CE65: =IF(AND(CE$64<=$AG$48,CE$64>=$AF$48,$BL65<=$AG$49,$BL65>=$AF$49),AV65," ") ->  | CF65: =IF(AND(CF$64<=$AG$48,CF$64>=$AF$48,$BL65<=$AG$49,$BL65>=$AF$49),AW65," ") ->  | CG65: =IF(AND(CG$64<=$AG$48,CG$64>=$AF$48,$BL65<=$AG$49,$BL65>=$AF$49),AX65," ") ->  | CH65: =IF(AND(CH$64<=$AG$48,CH$64>=$AF$48,$BL65<=$AG$49,$BL65>=$AF$49),AY65," ") ->  | CI65: =IF(AND(CI$64<=$AG$48,CI$64>=$AF$48,$BL65<=$AG$49,$BL65>=$AF$49),AZ65," ") ->  | CJ65: =IF(AND(CJ$64<=$AG$48,CJ$64>=$AF$48,$BL65<=$AG$49,$BL65>=$AF$49),BA65," ") -> 
B66: 2600 | C66: =IF(C53>0,C53/RatedHP,"") ->  | N66: 103% | O66: 98% | P66: 95% | Q66: 91% | R66: 86% | S66: 82% | T66: 78% | U66: 73% | V66: 69% | W66: 65% | X66: 61% | Y66: 56% | Z66: 52% | AC66: 2600 | AO66: 1% | AP66: 1% | AQ66: 0% | AR66: -1% | AS66: -0% | AT66: -0% | AU66: -0% | AV66: -0% | AW66: -0% | AX66: -1% | AY66: -0% | AZ66: 0% | BA66: -0% | BL66: 2600 | BM66: =IF(AND(BM$64<=$AG$48,BM$64>=$AF$48,$BL66<=$AG$49,$BL66>=$AF$49),AD66," ") -> 
B67: 2500 | C67: =IF(C54>0,C54/RatedHP,"") ->  | N67: 99% | O67: 95% | P67: 91% | Q67: 87% | R67: 83% | S67: 79% | T67: 75% | U67: 71% | V67: 66% | W67: 62% | X67: 58% | Y67: 54% | Z67: 50% | AC67: 2500 | AO67: 0% | AP67: -0% | AQ67: -0% | AR67: -1% | AS67: -1% | AT67: -1% | AU67: -1% | AV67: -1% | AW67: -0% | AX67: -0% | AY67: -0% | AZ67: -0% | BA67: -0% | BL67: 2500 | CC67: -1% | CD67: -1% | CE67: -1% | CF67: -0% | CG67: -0% | CH67: -0% | CI67: -0%
B68: 2400 | C68: =IF(C55>0,C55/RatedHP,"") ->  | N68: 95% | O68: 91% | P68: 87% | Q68: 83% | R68: 80% | S68: 76% | T68: 72% | U68: 68% | V68: 64% | W68: 60% | X68: 56% | Y68: 52% | Z68: 48% | AC68: 2400 | AO68: -0% | AP68: -0% | AQ68: -1% | AR68: -1% | AS68: -1% | AT68: -1% | AU68: -1% | AV68: -1% | AW68: -1% | AX68: -1% | AY68: -1% | AZ68: -1% | BA68: -1% | BL68: 2400 | CC68: -1% | CD68: -1% | CE68: -1% | CF68: -1% | CG68: -1% | CH68: -1% | CI68: -1%
B69: 2300 | C69: =IF(C56>0,C56/RatedHP,"") ->  | N69: 91% | O69: 88% | P69: 84% | Q69: 80% | R69: 77% | S69: 73% | T69: 69% | U69: 65% | V69: 62% | W69: 58% | X69: 54% | Y69: 50% | Z69: 46% | AC69: 2300 | AO69: -1% | AP69: -1% | AQ69: -1% | AR69: -1% | AS69: -1% | AT69: -2% | AU69: -2% | AV69: -1% | AW69: -1% | AX69: -1% | AY69: -1% | AZ69: =IF(Y56>0,AZ56-Y69,"") -> -1% | BA69: =IF(Z56>0,BA56-Z69,"") -> -0% | BL69: 2300 | CC69: -2% | CD69: -2% | CE69: -1% | CF69: -1% | CG69: -1% | CH69: -1% | CI69: -1%
B70: 2200 | C70: =IF(C57>0,C57/RatedHP,"") ->  | N70: 87% | O70: 84% | P70: 80% | Q70: 77% | R70: 73% | S70: 69% | T70: 66% | U70: 62% | V70: 58% | W70: 55% | X70: 51% | Y70: 47% | Z70: 43% | AC70: 2200 | AO70: -1% | AP70: -1% | AQ70: -2% | AR70: -2% | AS70: -2% | AT70: -1% | AU70: -1% | AV70: -1% | AW70: -1% | AX70: -1% | AY70: -0% | AZ70: -0% | BA70: 0% | BL70: 2200 | CC70: -1% | CD70: -1% | CE70: -1% | CF70: -1% | CG70: -1% | CH70: -0% | CI70: -0%
B71: 2100 | C71: =IF(C58>0,C58/RatedHP,"") ->  | N71: 83% | O71: 80% | P71: 76% | Q71: 73% | R71: 69% | S71: 65% | T71: 62% | U71: 58% | V71: 55% | W71: 52% | X71: 48% | Y71: 44% | Z71: 41% | AC71: 2100 | AO71: -1% | AP71: -1% | AQ71: -1% | AR71: -1% | AS71: -1% | AT71: -1% | AU71: -1% | AV71: -1% | AW71: -1% | AX71: -0% | AY71: -0% | AZ71: 0% | BA71: 1% | BL71: 2100 | CC71: -1% | CD71: -1% | CE71: -1% | CF71: -1% | CG71: -0% | CH71: -0% | CI71: 0%
B72: 2000 | C72: =IF(C59>0,C59/RatedHP,"") ->  | N72: 79% | O72: 75% | P72: 72% | Q72: 68% | R72: 65% | S72: 62% | T72: 58% | U72: 55% | V72: 52% | W72: 48% | X72: 45% | Y72: 42% | Z72: 38% | AC72: 2000 | AO72: -1% | AP72: -1% | AQ72: -1% | AR72: -1% | AS72: -1% | AT72: -0% | AU72: -0% | AV72: 0% | AW72: 0% | AX72: 0% | AY72: 0% | AZ72: 1% | BA72: 1% | BL72: 2000
B73: 1900 | C73: =IF(C60>0,C60/RatedHP,"") ->  | N73: 74% | O73: 71% | P73: 68% | Q73: 65% | R73: 61% | S73: 58% | T73: 55% | U73: 52% | V73: 48% | W73: 45% | X73: 42% | Y73: 39% | Z73: 36% | AC73: 1900 | AO73: -1% | AP73: -1% | AQ73: -1% | AR73: -1% | AS73: -0% | AT73: 0% | AU73: 0% | AV73: 0% | AW73: 0% | AX73: 0% | AY73: =IF(X60>0,AY60-X73,"") -> 1% | AZ73: 1% | BA73: 1% | BL73: 1900
B74: 1800 | C74: =IF(C61>0,C61/RatedHP,"") ->  | N74: 70% | O74: 67% | P74: 64% | Q74: 61% | R74: 58% | S74: 54% | T74: 51% | U74: 48% | V74: 46% | W74: 43% | X74: 40% | Y74: 37% | Z74: 34% | AC74: 1800 | AO74: -1% | AP74: -1% | AQ74: -1% | AR74: -1% | AS74: -0% | AT74: 0% | AU74: 0% | AV74: 0% | AW74: 0% | AX74: 0% | AY74: =IF(X61>0,AY61-X74,"") -> 1% | AZ74: 1% | BA74: 1% | BL74: 1800
A78: Data set ref: | C78: ISA conditions (-5degC / 10000ft PA) | M78: Chart parameters: | R78: Temp: | S78: 23 degF | AB78: =CONCATENATE("Derived data set for ",C78) -> Derived data set for ISA conditions (-5degC / 10000ft PA)
R79: Press alt: | S79: 10000 ft | AC79: Selected parameter ranges for testing match accuracy:
S80: =((0.00000001187*(S79^2))-(0.001052*S79)+29.92)*33.865 -> (697 hPa) | AE80: Min / max MAP: | AF80: 17 | AG80: 23 | AI80: Average absolute error: | AM80: =IF(SUM(BM97:CJ106)=0," ",AVERAGE(BM97:CJ106)) -> -0.54% | AZ80: Alt factor: | BA80: =((1+$T$5)*($N$5/$S80)-$T$5) -> 1.14
AE81: Min/max RPM: | AF81: 2100 | AG81: 2500 | AI81: Max absolute error: | AM81: =IF(AM80=" "," ",MAX(ABS(MIN(BM97:CJ106)),ABS(MAX(BM97:CJ106)))) -> 1.66% | AZ81: Temp factor: | BA81: =SQRT((519-3.58*$S79/1000)/(460+$S78)) -> 1.00
A82: ~HP ROP as per Power Chart | C82: Manifold Pressure (inHg) | AB82: ~HP as per rev Formula with pa&ta | AD82: Manifold Pressure (Hg)
C83: 40 | D83: 39 | E83: 38 | F83: 37 | G83: 36 | H83: 35 | I83: 34 | J83: 33 | K83: 32 | L83: 31 | M83: 30 | N83: 29 | O83: 28 | P83: 27 | Q83: 26 | R83: 25 | S83: 24 | T83: 23 | U83: 22 | V83: 21 | W83: 20 | X83: 19 | Y83: 18 | Z83: 17 | AD83: 40 | AE83: 39 | AF83: 38 | AG83: 37 | AH83: 36 | AI83: 35 | AJ83: 34 | AK83: 33 | AL83: 32 | AM83: 31 | AN83: 30 | AO83: 29 | AP83: 28 | AQ83: 27 | AR83: 26 | AS83: 25 | AT83: 24 | AU83: 23 | AV83: 22 | AW83: 21 | AX83: 20 | AY83: 19 | AZ83: 18 | BA83: 17
A84: RPM | B84: 2700 | N84: 294 | O84: 282 | P84: 270 | Q84: 258 | R84: 246 | S84: 235 | T84: 224 | U84: 214 | V84: 200 | W84: 188 | X84: 176 | Y84: 165 | Z84: 154 | AB84: RPM | AC84: 2700 | AD84: =IF(C84>0,((((RatedMAP-((RatedMAP-AD$19)*PwrCons1))/RatedMAP)*$AC84/RatedRPM)^PwrCons2)*((1+$T$5)*($N$5/$S$80)-$T$5)*SQRT((519-3.58*$S$79/1000)/(460+$S$78)),"") ->  | AE84: =IF(D84>0,((((RatedMAP-((RatedMAP-AE$19)*PwrCons1))/RatedMAP)*$AC84/RatedRPM)^PwrCons2)*((1+$T$5)*($N$5/$S$80)-$T$5)*SQRT((519-3.58*$S$79/1000)/(460+$S$78)),"") ->  | AF84: =IF(E84>0,((((RatedMAP-((RatedMAP-AF$19)*PwrCons1))/RatedMAP)*$AC84/RatedRPM)^PwrCons2)*((1+$T$5)*($N$5/$S$80)-$T$5)*SQRT((519-3.58*$S$79/1000)/(460+$S$78)),"") ->  | AG84: =IF(F84>0,((((RatedMAP-((RatedMAP-AG$19)*PwrCons1))/RatedMAP)*$AC84/RatedRPM)^PwrCons2)*((1+$T$5)*($N$5/$S$80)-$T$5)*SQRT((519-3.58*$S$79/1000)/(460+$S$78)),"") ->  | AH84: =IF(G84>0,((((RatedMAP-((RatedMAP-AH$19)*PwrCons1))/RatedMAP)*$AC84/RatedRPM)^PwrCons2)*((1+$T$5)*($N$5/$S$80)-$T$5)*SQRT((519-3.58*$S$79/1000)/(460+$S$78)),"") ->  | AI84: =IF(H84>0,((((RatedMAP-((RatedMAP-AI$19)*PwrCons1))/RatedMAP)*$AC84/RatedRPM)^PwrCons2)*((1+$T$5)*($N$5/$S$80)-$T$5)*SQRT((519-3.58*$S$79/1000)/(460+$S$78)),"") ->  | AJ84: =IF(I84>0,((((RatedMAP-((RatedMAP-AJ$19)*PwrCons1))/RatedMAP)*$AC84/RatedRPM)^PwrCons2)*((1+$T$5)*($N$5/$S$80)-$T$5)*SQRT((519-3.58*$S$79/1000)/(460+$S$78)),"") ->  | AK84: =IF(J84>0,((((RatedMAP-((RatedMAP-AK$19)*PwrCons1))/RatedMAP)*$AC84/RatedRPM)^PwrCons2)*((1+$T$5)*($N$5/$S$80)-$T$5)*SQRT((519-3.58*$S$79/1000)/(460+$S$78)),"") ->  | AL84: =IF(K84>0,((((RatedMAP-((RatedMAP-AL$19)*PwrCons1))/RatedMAP)*$AC84/RatedRPM)^PwrCons2)*((1+$T$5)*($N$5/$S$80)-$T$5)*SQRT((519-3.58*$S$79/1000)/(460+$S$78)),"") ->  | AM84: =IF(L84>0,((((RatedMAP-((RatedMAP-AM$19)*PwrCons1))/RatedMAP)*$AC84/RatedRPM)^PwrCons2)*((1+$T$5)*($N$5/$S$80)-$T$5)*SQRT((519-3.58*$S$79/1000)/(460+$S$78)),"") ->  | AN84: =IF(M84>0,((((RatedMAP-((RatedMAP-AN$19)*PwrCons1))/RatedMAP)*$AC84/RatedRPM)^PwrCons2)*((1+$T$5)*($N$5/$S$80)-$T$5)*SQRT((519-3.58*$S$79/1000)/(460+$S$78)),"") ->  | AO84: =IF(N84>0,((((RatedMAP-((RatedMAP-AO$19)*PwrCons1))/RatedMAP)*$AC84/RatedRPM)^PwrCons2)*((1+$T$5)*($N$5/$S$80)-$T$5)*SQRT((519-3.58*$S$79/1000)/(460+$S$78)),"") -> 116% | AP84: =IF(O84>0,((((RatedMAP-((RatedMAP-AP$19)*PwrCons1))/RatedMAP)*$AC84/RatedRPM)^PwrCons2)*((1+$T$5)*($N$5/$S$80)-$T$5)*SQRT((519-3.58*$S$79/1000)/(460+$S$78)),"") -> 111% | AQ84: =IF(P84>0,((((RatedMAP-((RatedMAP-AQ$19)*PwrCons1))/RatedMAP)*$AC84/RatedRPM)^PwrCons2)*((1+$T$5)*($N$5/$S$80)-$T$5)*SQRT((519-3.58*$S$79/1000)/(460+$S$78)),"") -> 106% | AR84: =IF(Q84>0,((((RatedMAP-((RatedMAP-AR$19)*PwrCons1))/RatedMAP)*$AC84/RatedRPM)^PwrCons2)*((1+$T$5)*($N$5/$S$80)-$T$5)*SQRT((519-3.58*$S$79/1000)/(460+$S$78)),"") -> 101% | AS84: =IF(R84>0,((((RatedMAP-((RatedMAP-AS$19)*PwrCons1))/RatedMAP)*$AC84/RatedRPM)^PwrCons2)*((1+$T$5)*($N$5/$S$80)-$T$5)*SQRT((519-3.58*$S$79/1000)/(460+$S$78)),"") -> 96% | AT84: =IF(S84>0,((((RatedMAP-((RatedMAP-AT$19)*PwrCons1))/RatedMAP)*$AC84/RatedRPM)^PwrCons2)*((1+$T$5)*($N$5/$S$80)-$T$5)*SQRT((519-3.58*$S$79/1000)/(460+$S$78)),"") -> 91% | AU84: =IF(T84>0,((((RatedMAP-((RatedMAP-AU$19)*PwrCons1))/RatedMAP)*$AC84/RatedRPM)^PwrCons2)*((1+$T$5)*($N$5/$S$80)-$T$5)*SQRT((519-3.58*$S$79/1000)/(460+$S$78)),"") -> 87% | AV84: =IF(U84>0,((((RatedMAP-((RatedMAP-AV$19)*PwrCons1))/RatedMAP)*$AC84/RatedRPM)^PwrCons2)*((1+$T$5)*($N$5/$S$80)-$T$5)*SQRT((519-3.58*$S$79/1000)/(460+$S$78)),"") -> 82% | AW84: =IF(V84>0,((((RatedMAP-((RatedMAP-AW$19)*PwrCons1))/RatedMAP)*$AC84/RatedRPM)^PwrCons2)*((1+$T$5)*($N$5/$S$80)-$T$5)*SQRT((519-3.58*$S$79/1000)/(460+$S$78)),"") -> 77% | AX84: =IF(W84>0,((((RatedMAP-((RatedMAP-AX$19)*PwrCons1))/RatedMAP)*$AC84/RatedRPM)^PwrCons2)*((1+$T$5)*($N$5/$S$80)-$T$5)*SQRT((519-3.58*$S$79/1000)/(460+$S$78)),"") -> 72% | AY84: =IF(X84>0,((((RatedMAP-((RatedMAP-AY$19)*PwrCons1))/RatedMAP)*$AC84/RatedRPM)^PwrCons2)*((1+$T$5)*($N$5/$S$80)-$T$5)*SQRT((519-3.58*$S$79/1000)/(460+$S$78)),"") -> 68% | AZ84: =IF(Y84>0,((((RatedMAP-((RatedMAP-AZ$19)*PwrCons1))/RatedMAP)*$AC84/RatedRPM)^PwrCons2)*((1+$T$5)*($N$5/$S$80)-$T$5)*SQRT((519-3.58*$S$79/1000)/(460+$S$78)),"") -> 63% | BA84: =IF(Z84>0,((((RatedMAP-((RatedMAP-BA$19)*PwrCons1))/RatedMAP)*$AC84/RatedRPM)^PwrCons2)*((1+$T$5)*($N$5/$S$80)-$T$5)*SQRT((519-3.58*$S$79/1000)/(460+$S$78)),"") -> 58%
B85: 2600 | N85: 282 | O85: 272 | P85: 260 | Q85: 249 | R85: 237 | S85: 226 | T85: 216 | U85: 206 | V85: 193 | W85: 182 | X85: 170 | Y85: 160 | Z85: 149 | AC85: 2600 | AO85: 111% | AP85: 106% | AQ85: 102% | AR85: 97% | AS85: 92% | AT85: 88% | AU85: 83% | AV85: 79% | AW85: 74% | AX85: 69% | AY85: 65% | AZ85: 61% | BA85: 56%
B86: 2500 | N86: 272 | O86: 262 | P86: 251 | Q86: 240 | R86: 229 | S86: 218 | T86: 208 | U86: 198 | V86: 186 | W86: 175 | X86: 164 | Y86: 154 | Z86: 144 | AC86: 2500 | AO86: 106% | AP86: 102% | AQ86: 97% | AR86: 93% | AS86: 88% | AT86: 84% | AU86: 80% | AV86: 75% | AW86: 71% | AX86: 67% | AY86: 62% | AZ86: 58% | BA86: 54%
B87: 2400 | N87: 262 | O87: 252 | P87: 242 | Q87: 232 | R87: 220 | S87: 209 | T87: 199 | U87: 189 | V87: 178 | W87: 168 | X87: 157 | Y87: 146 | Z87: 136 | AC87: 2400 | AO87: 102% | AP87: 97% | AQ87: 93% | AR87: 89% | AS87: 85% | AT87: 80% | AU87: 76% | AV87: 72% | AW87: 68% | AX87: 64% | AY87: 60% | AZ87: 55% | BA87: 51%
B88: 2300 | N88: 252 | O88: 243 | P88: 233 | Q88: 222 | R88: 212 | S88: 200 | T88: 190 | U88: 181 | V88: 171 | W88: 161 | X88: 150 | Y88: 139 | Z88: 128 | AC88: 2300 | AO88: 97% | AP88: 93% | AQ88: 89% | AR88: 85% | AS88: 81% | AT88: 77% | AU88: 73% | AV88: 69% | AW88: 65% | AX88: 61% | AY88: 57% | AZ88: 53% | BA88: 49%
B89: 2200 | N89: 243 | O89: 234 | P89: 224 | Q89: 212 | R89: 201 | S89: 190 | T89: 180 | U89: 171 | V89: 161 | W89: 152 | X89: 142 | Y89: 132 | Z89: 121 | AC89: 2200 | AO89: 92% | AP89: 88% | AQ89: 85% | AR89: 81% | AS89: 77% | AT89: 73% | AU89: 69% | AV89: 65% | AW89: 62% | AX89: 58% | AY89: 54% | AZ89: 50% | BA89: 47%
B90: 2100 | N90: 233 | O90: 223 | P90: 212 | Q90: 202 | R90: 191 | S90: 180 | T90: 170 | U90: 161 | V90: 152 | W90: 143 | X90: 133 | Y90: 124 | Z90: 114 | AC90: 2100 | AO90: 88% | AP90: 84% | AQ90: 80% | AR90: 77% | AS90: 73% | AT90: 69% | AU90: 66% | AV90: 62% | AW90: 58% | AX90: 55% | AY90: 51% | AZ90: 48% | BA90: 44%
B91: 2000 | N91: 222 | O91: 211 | P91: 200 | Q91: 192 | R91: 180 | S91: 169 | T91: 160 | U91: 152 | V91: 144 | W91: 134 | X91: 126 | Y91: 117 | Z91: 108 | AC91: 2000 | AO91: 83% | AP91: 80% | AQ91: 76% | AR91: 73% | AS91: 69% | AT91: 66% | AU91: 62% | AV91: 59% | AW91: 55% | AX91: 52% | AY91: 49% | AZ91: 45% | BA91: 42%
B92: 1900 | N92: 210 | O92: 200 | P92: 190 | Q92: 182 | R92: 170 | S92: 160 | T92: 150 | U92: 143 | V92: 135 | W92: 126 | X92: 118 | Y92: 110 | Z92: 102 | AC92: 1900 | AO92: 79% | AP92: 75% | AQ92: 72% | AR92: 69% | AS92: 65% | AT92: 62% | AU92: 59% | AV92: 56% | AW92: 52% | AX92: 49% | AY92: 46% | AZ92: 43% | BA92: 40%
B93: 1800 | N93: 199 | O93: 189 | P93: 179 | Q93: 169 | R93: 159 | S93: 150 | T93: 140 | U93: 134 | V93: 126 | W93: 118 | X93: 110 | Y93: 103 | Z93: 96 | AC93: 1800 | AO93: 74% | AP93: 71% | AQ93: 68% | AR93: 65% | AS93: 62% | AT93: 58% | AU93: 55% | AV93: 52% | AW93: 49% | AX93: 46% | AY93: 43% | AZ93: 40% | BA93: 37%
A95: HP ROP % of RatedHP | C95: Manifold Pressure (inHg) | AB95: Difference | BK95: Difference for selected params
C96: 40 | D96: 39 | E96: 38 | F96: 37 | G96: 36 | H96: 35 | I96: 34 | J96: 33 | K96: 32 | L96: 31 | M96: 30 | N96: 29 | O96: 28 | P96: 27 | Q96: 26 | R96: 25 | S96: 24 | T96: 23 | U96: 22 | V96: 21 | W96: 20 | X96: 19 | Y96: 18 | Z96: 17 | AD96: 40 | AE96: 39 | AF96: 38 | AG96: 37 | AH96: 36 | AI96: 35 | AJ96: 34 | AK96: 33 | AL96: 32 | AM96: 31 | AN96: 30 | AO96: 29 | AP96: 28 | AQ96: 27 | AR96: 26 | AS96: 25 | AT96: 24 | AU96: 23 | AV96: 22 | AW96: 21 | AX96: 20 | AY96: 19 | AZ96: 18 | BA96: 17 | BM96: 40 | BN96: 39 | BO96: 38 | BP96: 37 | BQ96: 36 | BR96: 35 | BS96: 34 | BT96: 33 | BU96: 32 | BV96: 31 | BW96: 30 | BX96: 29 | BY96: 28 | BZ96: 27 | CA96: 26 | CB96: 25 | CC96: 24 | CD96: 23 | CE96: 22 | CF96: 21 | CG96: 20 | CH96: 19 | CI96: 18 | CJ96: 17
A97: RPM | B97: 2700 | C97: =IF(C84>0,C84/RatedHP,"") ->  | N97: 113% | O97: 108% | P97: 104% | Q97: 99% | R97: 95% | S97: 90% | T97: 86% | U97: 82% | V97: 77% | W97: 72% | X97: 68% | Y97: 63% | Z97: 59% | AB97: RPM | AC97: 2700 | AD97: =IF(C84>0,AD84-C97,"") ->  | AE97: =IF(D84>0,AE84-D97,"") ->  | AF97: =IF(E84>0,AF84-E97,"") ->  | AG97: =IF(F84>0,AG84-F97,"") ->  | AH97: =IF(G84>0,AH84-G97,"") ->  | AI97: =IF(H84>0,AI84-H97,"") ->  | AJ97: =IF(I84>0,AJ84-I97,"") ->  | AK97: =IF(J84>0,AK84-J97,"") ->  | AL97: =IF(K84>0,AL84-K97,"") ->  | AM97: =IF(L84>0,AM84-L97,"") ->  | AN97: =IF(M84>0,AN84-M97,"") ->  | AO97: =IF(N84>0,AO84-N97,"") -> 3% | AP97: =IF(O84>0,AP84-O97,"") -> 2% | AQ97: =IF(P84>0,AQ84-P97,"") -> 2% | AR97: =IF(Q84>0,AR84-Q97,"") -> 2% | AS97: =IF(R84>0,AS84-R97,"") -> 2% | AT97: =IF(S84>0,AT84-S97,"") -> 1% | AU97: =IF(T84>0,AU84-T97,"") -> 1% | AV97: =IF(U84>0,AV84-U97,"") -> -0% | AW97: =IF(V84>0,AW84-V97,"") -> 0% | AX97: =IF(W84>0,AX84-W97,"") -> 0% | AY97: =IF(X84>0,AY84-X97,"") -> 0% | AZ97: =IF(Y84>0,AZ84-Y97,"") -> -0% | BA97: -1% | BK97: RPM | BL97: 2700 | BM97: =IF(AND(BM$96<=$AG$80,BM$96>=$AF$80,$BL97<=$AG$81,$BL97>=$AF$81),AD97," ") ->  | BN97: =IF(AND(BN$96<=$AG$80,BN$96>=$AF$80,$BL97<=$AG$81,$BL97>=$AF$81),AE97," ") ->  | BO97: =IF(AND(BO$96<=$AG$80,BO$96>=$AF$80,$BL97<=$AG$81,$BL97>=$AF$81),AF97," ") ->  | BP97: =IF(AND(BP$96<=$AG$80,BP$96>=$AF$80,$BL97<=$AG$81,$BL97>=$AF$81),AG97," ") ->  | BQ97: =IF(AND(BQ$96<=$AG$80,BQ$96>=$AF$80,$BL97<=$AG$81,$BL97>=$AF$81),AH97," ") ->  | BR97: =IF(AND(BR$96<=$AG$80,BR$96>=$AF$80,$BL97<=$AG$81,$BL97>=$AF$81),AI97," ") ->  | BS97: =IF(AND(BS$96<=$AG$80,BS$96>=$AF$80,$BL97<=$AG$81,$BL97>=$AF$81),AJ97," ") ->  | BT97: =IF(AND(BT$96<=$AG$80,BT$96>=$AF$80,$BL97<=$AG$81,$BL97>=$AF$81),AK97," ") ->  | BU97: =IF(AND(BU$96<=$AG$80,BU$96>=$AF$80,$BL97<=$AG$81,$BL97>=$AF$81),AL97," ") ->  | BV97: =IF(AND(BV$96<=$AG$80,BV$96>=$AF$80,$BL97<=$AG$81,$BL97>=$AF$81),AM97," ") ->  | BW97: =IF(AND(BW$96<=$AG$80,BW$96>=$AF$80,$BL97<=$AG$81,$BL97>=$AF$81),AN97," ") ->  | BX97: =IF(AND(BX$96<=$AG$80,BX$96>=$AF$80,$BL97<=$AG$81,$BL97>=$AF$81),AO97," ") ->  | BY97: =IF(AND(BY$96<=$AG$80,BY$96>=$AF$80,$BL97<=$AG$81,$BL97>=$AF$81),AP97," ") ->  | BZ97: =IF(AND(BZ$96<=$AG$80,BZ$96>=$AF$80,$BL97<=$AG$81,$BL97>=$AF$81),AQ97," ") ->  | CA97: =IF(AND(CA$96<=$AG$80,CA$96>=$AF$80,$BL97<=$AG$81,$BL97>=$AF$81),AR97," ") ->  | CB97: =IF(AND(CB$96<=$AG$80,CB$96>=$AF$80,$BL97<=$AG$81,$BL97>=$AF$81),AS97," ") ->  | CC97: =IF(AND(CC$96<=$AG$80,CC$96>=$AF$80,$BL97<=$AG$81,$BL97>=$AF$81),AT97," ") ->  | CD97: =IF(AND(CD$96<=$AG$80,CD$96>=$AF$80,$BL97<=$AG$81,$BL97>=$AF$81),AU97," ") ->  | CE97: =IF(AND(CE$96<=$AG$80,CE$96>=$AF$80,$BL97<=$AG$81,$BL97>=$AF$81),AV97," ") ->  | CF97: =IF(AND(CF$96<=$AG$80,CF$96>=$AF$80,$BL97<=$AG$81,$BL97>=$AF$81),AW97," ") ->  | CG97: =IF(AND(CG$96<=$AG$80,CG$96>=$AF$80,$BL97<=$AG$81,$BL97>=$AF$81),AX97," ") ->  | CH97: =IF(AND(CH$96<=$AG$80,CH$96>=$AF$80,$BL97<=$AG$81,$BL97>=$AF$81),AY97," ") ->  | CI97: =IF(AND(CI$96<=$AG$80,CI$96>=$AF$80,$BL97<=$AG$81,$BL97>=$AF$81),AZ97," ") ->  | CJ97: =IF(AND(CJ$96<=$AG$80,CJ$96>=$AF$80,$BL97<=$AG$81,$BL97>=$AF$81),BA97," ") -> 
B98: 2600 | C98: =IF(C85>0,C85/RatedHP,"") ->  | N98: 108% | O98: 105% | P98: 100% | Q98: 96% | R98: 91% | S98: 87% | T98: 83% | U98: 79% | V98: 74% | W98: 70% | X98: 65% | Y98: 62% | Z98: 57% | AC98: 2600 | AO98: 3% | AP98: 2% | AQ98: 2% | AR98: 1% | AS98: 1% | AT98: 1% | AU98: 0% | AV98: -1% | AW98: -0% | AX98: -1% | AY98: -0% | AZ98: -1% | BA98: -1% | BL98: 2600 | BM98: =IF(AND(BM$96<=$AG$80,BM$96>=$AF$80,$BL98<=$AG$81,$BL98>=$AF$81),AD98," ") -> 
B99: 2500 | C99: =IF(C86>0,C86/RatedHP,"") ->  | N99: 105% | O99: 101% | P99: 97% | Q99: 92% | R99: 88% | S99: 84% | T99: 80% | U99: 76% | V99: 72% | W99: 67% | X99: 63% | Y99: 59% | Z99: 55% | AC99: 2500 | AO99: 2% | AP99: 1% | AQ99: 1% | AR99: 1% | AS99: 0% | AT99: 0% | AU99: -0% | AV99: -1% | AW99: -1% | AX99: -1% | AY99: -1% | AZ99: -1% | BA99: -2% | BL99: 2500 | CD99: -0% | CE99: -1% | CF99: -1% | CG99: -1% | CH99: -1% | CI99: -1% | CJ99: -2%
B100: 2400 | C100: =IF(C87>0,C87/RatedHP,"") ->  | N100: 101% | O100: 97% | P100: 93% | Q100: 89% | R100: 85% | S100: 80% | T100: 77% | U100: 73% | V100: 68% | W100: 65% | X100: 60% | Y100: 56% | Z100: 52% | AC100: 2400 | AO100: 1% | AP100: 0% | AQ100: -0% | AR100: -0% | AS100: -0% | AT100: -0% | AU100: -0% | AV100: -1% | AW100: -1% | AX100: -1% | AY100: -1% | AZ100: -1% | BA100: -1% | BL100: 2400 | CD100: -0% | CE100: -1% | CF100: -1% | CG100: -1% | CH100: -1% | CI100: -1% | CJ100: -1%
B101: 2300 | C101: =IF(C88>0,C88/RatedHP,"") ->  | N101: 97% | O101: 93% | P101: 90% | Q101: 85% | R101: 82% | S101: 77% | T101: 73% | U101: 70% | V101: 66% | W101: 62% | X101: 58% | Y101: 53% | Z101: 49% | AC101: 2300 | AO101: 0% | AP101: -1% | AQ101: -1% | AR101: -1% | AS101: -1% | AT101: -0% | AU101: -0% | AV101: -1% | AW101: -1% | AX101: -1% | AY101: -1% | AZ101: =IF(Y88>0,AZ88-Y101,"") -> -1% | BA101: =IF(Z88>0,BA88-Z101,"") -> -0% | BL101: 2300 | CD101: -0% | CE101: -1% | CF101: -1% | CG101: -1% | CH101: -1% | CI101: -1% | CJ101: -0%
B102: 2200 | C102: =IF(C89>0,C89/RatedHP,"") ->  | N102: 93% | O102: 90% | P102: 86% | Q102: 82% | R102: 77% | S102: 73% | T102: 69% | U102: 66% | V102: 62% | W102: 58% | X102: 55% | Y102: 51% | Z102: 47% | AC102: 2200 | AO102: -1% | AP102: -2% | AQ102: -2% | AR102: -1% | AS102: -1% | AT102: -0% | AU102: -0% | AV102: -0% | AW102: -0% | AX102: -1% | AY102: -1% | AZ102: -0% | BA102: 0% | BL102: 2200 | CD102: -0% | CE102: -0% | CF102: -0% | CG102: -1% | CH102: -1% | CI102: -0% | CJ102: 0%
B103: 2100 | C103: =IF(C90>0,C90/RatedHP,"") ->  | N103: 90% | O103: 86% | P103: 82% | Q103: 78% | R103: 73% | S103: 69% | T103: 65% | U103: 62% | V103: 58% | W103: 55% | X103: 51% | Y103: 48% | Z103: 44% | AC103: 2100 | AO103: -2% | AP103: -2% | AQ103: -1% | AR103: -1% | AS103: -1% | AT103: 0% | AU103: 0% | AV103: 0% | AW103: 0% | AX103: -0% | AY103: 0% | AZ103: 0% | BA103: 0% | BL103: 2100 | CD103: 0% | CE103: 0% | CF103: 0% | CG103: -0% | CH103: 0% | CI103: 0% | CJ103: 0%
B104: 2000 | C104: =IF(C91>0,C91/RatedHP,"") ->  | N104: 85% | O104: 81% | P104: 77% | Q104: 74% | R104: 69% | S104: 65% | T104: 62% | U104: 58% | V104: 55% | W104: 52% | X104: 48% | Y104: 45% | Z104: 42% | AC104: 2000 | AO104: -2% | AP104: -2% | AQ104: -1% | AR104: -1% | AS104: -0% | AT104: 1% | AU104: 1% | AV104: 0% | AW104: 0% | AX104: 0% | AY104: 0% | AZ104: 0% | BA104: 0% | BL104: 2000
B105: 1900 | C105: =IF(C92>0,C92/RatedHP,"") ->  | N105: 81% | O105: 77% | P105: 73% | Q105: 70% | R105: 65% | S105: 62% | T105: 58% | U105: 55% | V105: 52% | W105: 48% | X105: 45% | Y105: 42% | Z105: 39% | AC105: 1900 | AO105: -2% | AP105: -2% | AQ105: -1% | AR105: -1% | AS105: -0% | AT105: 1% | AU105: 1% | AV105: 1% | AW105: 0% | AX105: 1% | AY105: =IF(X92>0,AY92-X105,"") -> 1% | AZ105: 1% | BA105: 0% | BL105: 1900
B106: 1800 | C106: =IF(C93>0,C93/RatedHP,"") ->  | N106: 77% | O106: 73% | P106: 69% | Q106: 65% | R106: 61% | S106: 58% | T106: 54% | U106: 52% | V106: 48% | W106: 45% | X106: 42% | Y106: 40% | Z106: 37% | AC106: 1800 | AO106: -3% | AP106: -2% | AQ106: -1% | AR106: -0% | AS106: 0% | AT106: 1% | AU106: 2% | AV106: 1% | AW106: 1% | AX106: 1% | AY106: =IF(X93>0,AY93-X106,"") -> 1% | AZ106: 1% | BA106: 0% | BL106: 1800
A110: Data set ref: | C110: ISA conditions (-15degC / 15000ft PA) | M110: Chart parameters: | R110: Temp: | S110: 5 degF | AB110: =CONCATENATE("Derived data set for ",C110) -> Derived data set for ISA conditions (-15degC / 15000ft PA)
R111: Press alt: | S111: 15000 ft | AC111: Selected parameter ranges for testing match accuracy:
S112: =((0.00000001187*(S111^2))-(0.001052*S111)+29.92)*33.865 -> (569 hPa) | AE112: Min / max MAP: | AF112: 16 | AG112: 22 | AI112: Average absolute error: | AM112: =IF(SUM(BM129:CJ138)=0," ",AVERAGE(BM129:CJ138)) -> 0.46% | AZ112: Alt factor: | BA112: =((1+$T$5)*($N$5/$S112)-$T$5) -> 1.24
AE113: Min/max RPM: | AF113: 2100 | AG113: 2500 | AI113: Max absolute error: | AM113: =IF(AM112=" "," ",MAX(ABS(MIN(BM129:CJ138)),ABS(MAX(BM129:CJ138)))) -> 1.62% | AZ113: Temp factor: | BA113: =SQRT((519-3.58*$S111/1000)/(460+$S110)) -> 1.00
A114: ~HP ROP as per Power Chart | C114: Manifold Pressure (inHg) | AB114: ~HP as per rev Formula with pa&ta | AD114: Manifold Pressure (Hg)
C115: 40 | D115: 39 | E115: 38 | F115: 37 | G115: 36 | H115: 35 | I115: 34 | J115: 33 | K115: 32 | L115: 31 | M115: 30 | N115: 29 | O115: 28 | P115: 27 | Q115: 26 | R115: 25 | S115: 24 | T115: 23 | U115: 22 | V115: 21 | W115: 20 | X115: 19 | Y115: 18 | Z115: 17 | AD115: 40 | AE115: 39 | AF115: 38 | AG115: 37 | AH115: 36 | AI115: 35 | AJ115: 34 | AK115: 33 | AL115: 32 | AM115: 31 | AN115: 30 | AO115: 29 | AP115: 28 | AQ115: 27 | AR115: 26 | AS115: 25 | AT115: 24 | AU115: 23 | AV115: 22 | AW115: 21 | AX115: 20 | AY115: 19 | AZ115: 18 | BA115: 17
A116: RPM | B116: 2700 | W116: 202 | X116: 189 | Y116: 176 | Z116: 163 | AB116: RPM | AC116: 2700 | AD116: =IF(C116>0,((((RatedMAP-((RatedMAP-AD$19)*PwrCons1))/RatedMAP)*$AC116/RatedRPM)^PwrCons2)*((1+$T$5)*($N$5/$S$112)-$T$5)*SQRT((519-3.58*$S$111/1000)/(460+$S$110)),"") ->  | AE116: =IF(D116>0,((((RatedMAP-((RatedMAP-AE$19)*PwrCons1))/RatedMAP)*$AC116/RatedRPM)^PwrCons2)*((1+$T$5)*($N$5/$S$112)-$T$5)*SQRT((519-3.58*$S$111/1000)/(460+$S$110)),"") ->  | AF116: =IF(E116>0,((((RatedMAP-((RatedMAP-AF$19)*PwrCons1))/RatedMAP)*$AC116/RatedRPM)^PwrCons2)*((1+$T$5)*($N$5/$S$112)-$T$5)*SQRT((519-3.58*$S$111/1000)/(460+$S$110)),"") ->  | AG116: =IF(F116>0,((((RatedMAP-((RatedMAP-AG$19)*PwrCons1))/RatedMAP)*$AC116/RatedRPM)^PwrCons2)*((1+$T$5)*($N$5/$S$112)-$T$5)*SQRT((519-3.58*$S$111/1000)/(460+$S$110)),"") ->  | AH116: =IF(G116>0,((((RatedMAP-((RatedMAP-AH$19)*PwrCons1))/RatedMAP)*$AC116/RatedRPM)^PwrCons2)*((1+$T$5)*($N$5/$S$112)-$T$5)*SQRT((519-3.58*$S$111/1000)/(460+$S$110)),"") ->  | AI116: =IF(H116>0,((((RatedMAP-((RatedMAP-AI$19)*PwrCons1))/RatedMAP)*$AC116/RatedRPM)^PwrCons2)*((1+$T$5)*($N$5/$S$112)-$T$5)*SQRT((519-3.58*$S$111/1000)/(460+$S$110)),"") ->  | AJ116: =IF(I116>0,((((RatedMAP-((RatedMAP-AJ$19)*PwrCons1))/RatedMAP)*$AC116/RatedRPM)^PwrCons2)*((1+$T$5)*($N$5/$S$112)-$T$5)*SQRT((519-3.58*$S$111/1000)/(460+$S$110)),"") ->  | AK116: =IF(J116>0,((((RatedMAP-((RatedMAP-AK$19)*PwrCons1))/RatedMAP)*$AC116/RatedRPM)^PwrCons2)*((1+$T$5)*($N$5/$S$112)-$T$5)*SQRT((519-3.58*$S$111/1000)/(460+$S$110)),"") ->  | AL116: =IF(K116>0,((((RatedMAP-((RatedMAP-AL$19)*PwrCons1))/RatedMAP)*$AC116/RatedRPM)^PwrCons2)*((1+$T$5)*($N$5/$S$112)-$T$5)*SQRT((519-3.58*$S$111/1000)/(460+$S$110)),"") ->  | AM116: =IF(L116>0,((((RatedMAP-((RatedMAP-AM$19)*PwrCons1))/RatedMAP)*$AC116/RatedRPM)^PwrCons2)*((1+$T$5)*($N$5/$S$112)-$T$5)*SQRT((519-3.58*$S$111/1000)/(460+$S$110)),"") ->  | AN116: =IF(M116>0,((((RatedMAP-((RatedMAP-AN$19)*PwrCons1))/RatedMAP)*$AC116/RatedRPM)^PwrCons2)*((1+$T$5)*($N$5/$S$112)-$T$5)*SQRT((519-3.58*$S$111/1000)/(460+$S$110)),"") ->  | AO116: =IF(N116>0,((((RatedMAP-((RatedMAP-AO$19)*PwrCons1))/RatedMAP)*$AC116/RatedRPM)^PwrCons2)*((1+$T$5)*($N$5/$S$112)-$T$5)*SQRT((519-3.58*$S$111/1000)/(460+$S$110)),"") ->  | AP116: =IF(O116>0,((((RatedMAP-((RatedMAP-AP$19)*PwrCons1))/RatedMAP)*$AC116/RatedRPM)^PwrCons2)*((1+$T$5)*($N$5/$S$112)-$T$5)*SQRT((519-3.58*$S$111/1000)/(460+$S$110)),"") ->  | AQ116: =IF(P116>0,((((RatedMAP-((RatedMAP-AQ$19)*PwrCons1))/RatedMAP)*$AC116/RatedRPM)^PwrCons2)*((1+$T$5)*($N$5/$S$112)-$T$5)*SQRT((519-3.58*$S$111/1000)/(460+$S$110)),"") ->  | AR116: =IF(Q116>0,((((RatedMAP-((RatedMAP-AR$19)*PwrCons1))/RatedMAP)*$AC116/RatedRPM)^PwrCons2)*((1+$T$5)*($N$5/$S$112)-$T$5)*SQRT((519-3.58*$S$111/1000)/(460+$S$110)),"") ->  | AS116: =IF(R116>0,((((RatedMAP-((RatedMAP-AS$19)*PwrCons1))/RatedMAP)*$AC116/RatedRPM)^PwrCons2)*((1+$T$5)*($N$5/$S$112)-$T$5)*SQRT((519-3.58*$S$111/1000)/(460+$S$110)),"") ->  | AT116: =IF(S116>0,((((RatedMAP-((RatedMAP-AT$19)*PwrCons1))/RatedMAP)*$AC116/RatedRPM)^PwrCons2)*((1+$T$5)*($N$5/$S$112)-$T$5)*SQRT((519-3.58*$S$111/1000)/(460+$S$110)),"") ->  | AU116: =IF(T116>0,((((RatedMAP-((RatedMAP-AU$19)*PwrCons1))/RatedMAP)*$AC116/RatedRPM)^PwrCons2)*((1+$T$5)*($N$5/$S$112)-$T$5)*SQRT((519-3.58*$S$111/1000)/(460+$S$110)),"") ->  | AV116: =IF(U116>0,((((RatedMAP-((RatedMAP-AV$19)*PwrCons1))/RatedMAP)*$AC116/RatedRPM)^PwrCons2)*((1+$T$5)*($N$5/$S$112)-$T$5)*SQRT((519-3.58*$S$111/1000)/(460+$S$110)),"") ->  | AW116: =IF(V116>0,((((RatedMAP-((RatedMAP-AW$19)*PwrCons1))/RatedMAP)*$AC116/RatedRPM)^PwrCons2)*((1+$T$5)*($N$5/$S$112)-$T$5)*SQRT((519-3.58*$S$111/1000)/(460+$S$110)),"") ->  | AX116: =IF(W116>0,((((RatedMAP-((RatedMAP-AX$19)*PwrCons1))/RatedMAP)*$AC116/RatedRPM)^PwrCons2)*((1+$T$5)*($N$5/$S$112)-$T$5)*SQRT((519-3.58*$S$111/1000)/(460+$S$110)),"") -> 79% | AY116: =IF(X116>0,((((RatedMAP-((RatedMAP-AY$19)*PwrCons1))/RatedMAP)*$AC116/RatedRPM)^PwrCons2)*((1+$T$5)*($N$5/$S$112)-$T$5)*SQRT((519-3.58*$S$111/1000)/(460+$S$110)),"") -> 74% | AZ116: =IF(Y116>0,((((RatedMAP-((RatedMAP-AZ$19)*PwrCons1))/RatedMAP)*$AC116/RatedRPM)^PwrCons2)*((1+$T$5)*($N$5/$S$112)-$T$5)*SQRT((519-3.58*$S$111/1000)/(460+$S$110)),"") -> 69% | BA116: =IF(Z116>0,((((RatedMAP-((RatedMAP-BA$19)*PwrCons1))/RatedMAP)*$AC116/RatedRPM)^PwrCons2)*((1+$T$5)*($N$5/$S$112)-$T$5)*SQRT((519-3.58*$S$111/1000)/(460+$S$110)),"") -> 64%
B117: 2600 | W117: 193 | X117: 181 | Y117: 169 | Z117: 156 | AC117: 2600 | AX117: 76% | AY117: 71% | AZ117: 66% | BA117: 61%
B118: 2500 | W118: 185 | X118: 174 | Y118: 163 | Z118: 152 | AC118: 2500 | AX118: 72% | AY118: 68% | AZ118: 63% | BA118: 58%
B119: 2400 | W119: 178 | X119: 167 | Y119: 156 | Z119: 145 | AC119: 2400 | AX119: 69% | AY119: 65% | AZ119: 60% | BA119: 56%
B120: 2300 | W120: 171 | X120: 160 | Y120: 150 | Z120: 140 | AC120: 2300 | AX120: 66% | AY120: 62% | AZ120: 57% | BA120: 53%
B121: 2200 | W121: 161 | X121: 151 | Y121: 142 | Z121: 132 | AC121: 2200 | AX121: 63% | AY121: 59% | AZ121: 55% | BA121: 51%
B122: 2100 | W122: 151 | X122: 142 | Y122: 133 | Z122: 124 | AC122: 2100 | AX122: 60% | AY122: 56% | AZ122: 52% | BA122: 48%
B123: 2000 | W123: 142 | X123: 133 | Y123: 125 | Z123: 116 | AC123: 2000 | AX123: 57% | AY123: 53% | AZ123: 49% | BA123: 46%
B124: 1900 | W124: 134 | X124: 125 | Y124: 117 | Z124: 109 | AC124: 1900 | AX124: 53% | AY124: 50% | AZ124: 47% | BA124: 43%
B125: 1800 | W125: 126 | X125: 118 | Y125: 110 | Z125: 102 | AC125: 1800 | AX125: 50% | AY125: 47% | AZ125: 44% | BA125: 41%
A127: HP ROP % of RatedHP | C127: Manifold Pressure (inHg) | AB127: Difference | AD127: Manifold Pressure (Hg) | BK127: Difference for selected params
C128: 40 | D128: 39 | E128: 38 | F128: 37 | G128: 36 | H128: 35 | I128: 34 | J128: 33 | K128: 32 | L128: 31 | M128: 30 | N128: 29 | O128: 28 | P128: 27 | Q128: 26 | R128: 25 | S128: 24 | T128: 23 | U128: 22 | V128: 21 | W128: 20 | X128: 19 | Y128: 18 | Z128: 17 | AD128: 40 | AE128: 39 | AF128: 38 | AG128: 37 | AH128: 36 | AI128: 35 | AJ128: 34 | AK128: 33 | AL128: 32 | AM128: 31 | AN128: 30 | AO128: 29 | AP128: 28 | AQ128: 27 | AR128: 26 | AS128: 25 | AT128: 24 | AU128: 23 | AV128: 22 | AW128: 21 | AX128: 20 | AY128: 19 | AZ128: 18 | BA128: 17 | BM128: 40 | BN128: 39 | BO128: 38 | BP128: 37 | BQ128: 36 | BR128: 35 | BS128: 34 | BT128: 33 | BU128: 32 | BV128: 31 | BW128: 30 | BX128: 29 | BY128: 28 | BZ128: 27 | CA128: 26 | CB128: 25 | CC128: 24 | CD128: 23 | CE128: 22 | CF128: 21 | CG128: 20 | CH128: 19 | CI128: 18 | CJ128: 17
A129: RPM | B129: 2700 | C129: =IF(C116>0,C116/RatedHP,"") ->  | W129: 78% | X129: 73% | Y129: 68% | Z129: 63% | AB129: RPM | AC129: 2700 | AD129: =IF(C116>0,AD116-C129,"") ->  | AE129: =IF(D116>0,AE116-D129,"") ->  | AF129: =IF(E116>0,AF116-E129,"") ->  | AG129: =IF(F116>0,AG116-F129,"") ->  | AH129: =IF(G116>0,AH116-G129,"") ->  | AI129: =IF(H116>0,AI116-H129,"") ->  | AJ129: =IF(I116>0,AJ116-I129,"") ->  | AK129: =IF(J116>0,AK116-J129,"") ->  | AL129: =IF(K116>0,AL116-K129,"") ->  | AM129: =IF(L116>0,AM116-L129,"") ->  | AN129: =IF(M116>0,AN116-M129,"") ->  | AO129: =IF(N116>0,AO116-N129,"") ->  | AP129: =IF(O116>0,AP116-O129,"") ->  | AQ129: =IF(P116>0,AQ116-P129,"") ->  | AR129: =IF(Q116>0,AR116-Q129,"") ->  | AS129: =IF(R116>0,AS116-R129,"") ->  | AT129: =IF(S116>0,AT116-S129,"") ->  | AU129: =IF(T116>0,AU116-T129,"") ->  | AV129: =IF(U116>0,AV116-U129,"") ->  | AW129: =IF(V116>0,AW116-V129,"") ->  | AX129: =IF(W116>0,AX116-W129,"") -> 1% | AY129: =IF(X116>0,AY116-X129,"") -> 1% | AZ129: =IF(Y116>0,AZ116-Y129,"") -> 1% | BA129: 1% | BK129: RPM | BL129: 2700 | BM129: =IF(AND(BM$128<=$AG$112,BM$128>=$AF$112,$BL129<=$AG$113,$BL129>=$AF$113),AD129," ") ->  | BN129: =IF(AND(BN$128<=$AG$112,BN$128>=$AF$112,$BL129<=$AG$113,$BL129>=$AF$113),AE129," ") ->  | BO129: =IF(AND(BO$128<=$AG$112,BO$128>=$AF$112,$BL129<=$AG$113,$BL129>=$AF$113),AF129," ") ->  | BP129: =IF(AND(BP$128<=$AG$112,BP$128>=$AF$112,$BL129<=$AG$113,$BL129>=$AF$113),AG129," ") ->  | BQ129: =IF(AND(BQ$128<=$AG$112,BQ$128>=$AF$112,$BL129<=$AG$113,$BL129>=$AF$113),AH129," ") ->  | BR129: =IF(AND(BR$128<=$AG$112,BR$128>=$AF$112,$BL129<=$AG$113,$BL129>=$AF$113),AI129," ") ->  | BS129: =IF(AND(BS$128<=$AG$112,BS$128>=$AF$112,$BL129<=$AG$113,$BL129>=$AF$113),AJ129," ") ->  | BT129: =IF(AND(BT$128<=$AG$112,BT$128>=$AF$112,$BL129<=$AG$113,$BL129>=$AF$113),AK129," ") ->  | BU129: =IF(AND(BU$128<=$AG$112,BU$128>=$AF$112,$BL129<=$AG$113,$BL129>=$AF$113),AL129," ") ->  | BV129: =IF(AND(BV$128<=$AG$112,BV$128>=$AF$112,$BL129<=$AG$113,$BL129>=$AF$113),AM129," ") ->  | BW129: =IF(AND(BW$128<=$AG$112,BW$128>=$AF$112,$BL129<=$AG$113,$BL129>=$AF$113),AN129," ") ->  | BX129: =IF(AND(BX$128<=$AG$112,BX$128>=$AF$112,$BL129<=$AG$113,$BL129>=$AF$113),AO129," ") ->  | BY129: =IF(AND(BY$128<=$AG$112,BY$128>=$AF$112,$BL129<=$AG$113,$BL129>=$AF$113),AP129," ") ->  | BZ129: =IF(AND(BZ$128<=$AG$112,BZ$128>=$AF$112,$BL129<=$AG$113,$BL129>=$AF$113),AQ129," ") ->  | CA129: =IF(AND(CA$128<=$AG$112,CA$128>=$AF$112,$BL129<=$AG$113,$BL129>=$AF$113),AR129," ") ->  | CB129: =IF(AND(CB$128<=$AG$112,CB$128>=$AF$112,$BL129<=$AG$113,$BL129>=$AF$113),AS129," ") ->  | CC129: =IF(AND(CC$128<=$AG$112,CC$128>=$AF$112,$BL129<=$AG$113,$BL129>=$AF$113),AT129," ") ->  | CD129: =IF(AND(CD$128<=$AG$112,CD$128>=$AF$112,$BL129<=$AG$113,$BL129>=$AF$113),AU129," ") ->  | CE129: =IF(AND(CE$128<=$AG$112,CE$128>=$AF$112,$BL129<=$AG$113,$BL129>=$AF$113),AV129," ") ->  | CF129: =IF(AND(CF$128<=$AG$112,CF$128>=$AF$112,$BL129<=$AG$113,$BL129>=$AF$113),AW129," ") ->  | CG129: =IF(AND(CG$128<=$AG$112,CG$128>=$AF$112,$BL129<=$AG$113,$BL129>=$AF$113),AX129," ") ->  | CH129: =IF(AND(CH$128<=$AG$112,CH$128>=$AF$112,$BL129<=$AG$113,$BL129>=$AF$113),AY129," ") ->  | CI129: =IF(AND(CI$128<=$AG$112,CI$128>=$AF$112,$BL129<=$AG$113,$BL129>=$AF$113),AZ129," ") ->  | CJ129: =IF(AND(CJ$128<=$AG$112,CJ$128>=$AF$112,$BL129<=$AG$113,$BL129>=$AF$113),BA129," ") -> 
B130: 2600 | C130: =IF(C117>0,C117/RatedHP,"") ->  | W130: 74% | X130: 70% | Y130: 65% | Z130: 60% | AC130: 2600 | AX130: 1% | AY130: 1% | AZ130: 1% | BA130: 1% | BL130: 2600 | BM130: =IF(AND(BM$128<=$AG$112,BM$128>=$AF$112,$BL130<=$AG$113,$BL130>=$AF$113),AD130," ") -> 
B131: 2500 | C131: =IF(C118>0,C118/RatedHP,"") ->  | W131: 71% | X131: 67% | Y131: 63% | Z131: 58% | AC131: 2500 | AX131: 1% | AY131: 1% | AZ131: 0% | BA131: -0% | BL131: 2500 | CG131: 1% | CH131: 1% | CI131: 0% | CJ131: -0%
B132: 2400 | C132: =IF(C119>0,C119/RatedHP,"") ->  | W132: 68% | X132: 64% | Y132: 60% | Z132: 56% | AC132: 2400 | AX132: 1% | AY132: 0% | AZ132: 0% | BA132: 0% | BL132: 2400 | CG132: 1% | CH132: 0% | CI132: 0% | CJ132: 0%
B133: 2300 | C133: =IF(C120>0,C120/RatedHP,"") ->  | W133: 66% | X133: 62% | Y133: 58% | Z133: 54% | AC133: 2300 | AX133: 0% | AY133: 0% | AZ133: =IF(Y120>0,AZ120-Y133,"") -> -0% | BA133: =IF(Z120>0,BA120-Z133,"") -> -1% | BL133: 2300 | CG133: 0% | CH133: 0% | CI133: -0% | CJ133: -1%
B134: 2200 | C134: =IF(C121>0,C121/RatedHP,"") ->  | W134: 62% | X134: 58% | Y134: 55% | Z134: 51% | AC134: 2200 | AX134: 1% | AY134: 1% | AZ134: 0% | BA134: -0% | BL134: 2200 | CG134: 1% | CH134: 1% | CI134: 0% | CJ134: -0%
B135: 2100 | C135: =IF(C122>0,C122/RatedHP,"") ->  | W135: 58% | X135: 55% | Y135: 51% | Z135: 48% | AC135: 2100 | AX135: 2% | AY135: 1% | AZ135: 1% | BA135: 0% | BL135: 2100 | CG135: 2% | CH135: 1% | CI135: 1% | CJ135: 0%
B136: 2000 | C136: =IF(C123>0,C123/RatedHP,"") ->  | W136: 55% | X136: 51% | Y136: 48% | Z136: 45% | AC136: 2000 | AX136: 2% | AY136: 2% | AZ136: 1% | BA136: 1% | BL136: 2000
B137: 1900 | C137: =IF(C124>0,C124/RatedHP,"") ->  | W137: 52% | X137: 48% | Y137: 45% | Z137: 42% | AC137: 1900 | AX137: 2% | AY137: =IF(X124>0,AY124-X137,"") -> 2% | AZ137: 2% | BA137: 1% | BL137: 1900
B138: 1800 | C138: =IF(C125>0,C125/RatedHP,"") ->  | W138: 48% | X138: 45% | Y138: 42% | Z138: 39% | AC138: 1800 | AX138: 2% | AY138: =IF(X125>0,AY125-X138,"") -> 2% | AZ138: 2% | BA138: 1% | BL138: 1800
A142: Data set ref: | B142: Data set ref: | C142: ISA conditions (-25degC / 20000ft PA) | M142: Chart parameters: | R142: Temp: | S142: -13 degF | AB142: =CONCATENATE("Derived data set for ",C142) -> Derived data set for ISA conditions (-25degC / 20000ft PA)
R143: Press alt: | S143: 20000 ft | AC143: Selected parameter ranges for testing match accuracy:
S144: =((0.00000001187*(S143^2))-(0.001052*S143)+29.92)*33.865 -> (462 hPa) | AE144: Min / max MAP: | AF144: 19 | AG144: 25 | AI144: Average absolute error: | AM144: =IF(SUM(BM161:CJ170)=0," ",AVERAGE(BM161:CJ170)) ->  | AZ144: Alt factor: | BA144: =((1+$T$5)*($N$5/$S144)-$T$5) -> 1.36
AE145: Min/max RPM: | AF145: 2100 | AG145: 2500 | AI145: Max absolute error: | AM145: =IF(AM144=" "," ",MAX(ABS(MIN(BM161:CJ170)),ABS(MAX(BM161:CJ170)))) ->  | AZ145: Temp factor: | BA145: =SQRT((519-3.58*$S143/1000)/(460+$S142)) -> 1.00
A146: ~HP ROP as per Power Chart | C146: Manifold Pressure (inHg) | AB146: ~HP as per rev Formula with pa&ta | AD146: Manifold Pressure (Hg)
C147: 40 | D147: 39 | E147: 38 | F147: 37 | G147: 36 | H147: 35 | I147: 34 | J147: 33 | K147: 32 | L147: 31 | M147: 30 | N147: 29 | O147: 28 | P147: 27 | Q147: 26 | R147: 25 | S147: 24 | T147: 23 | U147: 22 | V147: 21 | W147: 20 | X147: 19 | Y147: 18 | Z147: 17 | AD147: 40 | AE147: 39 | AF147: 38 | AG147: 37 | AH147: 36 | AI147: 35 | AJ147: 34 | AK147: 33 | AL147: 32 | AM147: 31 | AN147: 30 | AO147: 29 | AP147: 28 | AQ147: 27 | AR147: 26 | AS147: 25 | AT147: 24 | AU147: 23 | AV147: 22 | AW147: 21 | AX147: 20 | AY147: 19 | AZ147: 18 | BA147: 17
A148: RPM | B148: 2700 | AB148: RPM | AC148: 2700 | AD148: =IF(C148>0,((((RatedMAP-((RatedMAP-AD$19)*PwrCons1))/RatedMAP)*$AC148/RatedRPM)^PwrCons2)*((1+$T$5)*($N$5/$S$144)-$T$5)*SQRT((519-3.58*$S$143/1000)/(460+$S$142)),"") ->  | AE148: =IF(D148>0,((((RatedMAP-((RatedMAP-AE$19)*PwrCons1))/RatedMAP)*$AC148/RatedRPM)^PwrCons2)*((1+$T$5)*($N$5/$S$144)-$T$5)*SQRT((519-3.58*$S$143/1000)/(460+$S$142)),"") ->  | AF148: =IF(E148>0,((((RatedMAP-((RatedMAP-AF$19)*PwrCons1))/RatedMAP)*$AC148/RatedRPM)^PwrCons2)*((1+$T$5)*($N$5/$S$144)-$T$5)*SQRT((519-3.58*$S$143/1000)/(460+$S$142)),"") ->  | AG148: =IF(F148>0,((((RatedMAP-((RatedMAP-AG$19)*PwrCons1))/RatedMAP)*$AC148/RatedRPM)^PwrCons2)*((1+$T$5)*($N$5/$S$144)-$T$5)*SQRT((519-3.58*$S$143/1000)/(460+$S$142)),"") ->  | AH148: =IF(G148>0,((((RatedMAP-((RatedMAP-AH$19)*PwrCons1))/RatedMAP)*$AC148/RatedRPM)^PwrCons2)*((1+$T$5)*($N$5/$S$144)-$T$5)*SQRT((519-3.58*$S$143/1000)/(460+$S$142)),"") ->  | AI148: =IF(H148>0,((((RatedMAP-((RatedMAP-AI$19)*PwrCons1))/RatedMAP)*$AC148/RatedRPM)^PwrCons2)*((1+$T$5)*($N$5/$S$144)-$T$5)*SQRT((519-3.58*$S$143/1000)/(460+$S$142)),"") ->  | AJ148: =IF(I148>0,((((RatedMAP-((RatedMAP-AJ$19)*PwrCons1))/RatedMAP)*$AC148/RatedRPM)^PwrCons2)*((1+$T$5)*($N$5/$S$144)-$T$5)*SQRT((519-3.58*$S$143/1000)/(460+$S$142)),"") ->  | AK148: =IF(J148>0,((((RatedMAP-((RatedMAP-AK$19)*PwrCons1))/RatedMAP)*$AC148/RatedRPM)^PwrCons2)*((1+$T$5)*($N$5/$S$144)-$T$5)*SQRT((519-3.58*$S$143/1000)/(460+$S$142)),"") ->  | AL148: =IF(K148>0,((((RatedMAP-((RatedMAP-AL$19)*PwrCons1))/RatedMAP)*$AC148/RatedRPM)^PwrCons2)*((1+$T$5)*($N$5/$S$144)-$T$5)*SQRT((519-3.58*$S$143/1000)/(460+$S$142)),"") ->  | AM148: =IF(L148>0,((((RatedMAP-((RatedMAP-AM$19)*PwrCons1))/RatedMAP)*$AC148/RatedRPM)^PwrCons2)*((1+$T$5)*($N$5/$S$144)-$T$5)*SQRT((519-3.58*$S$143/1000)/(460+$S$142)),"") ->  | AN148: =IF(M148>0,((((RatedMAP-((RatedMAP-AN$19)*PwrCons1))/RatedMAP)*$AC148/RatedRPM)^PwrCons2)*((1+$T$5)*($N$5/$S$144)-$T$5)*SQRT((519-3.58*$S$143/1000)/(460+$S$142)),"") ->  | AO148: =IF(N148>0,((((RatedMAP-((RatedMAP-AO$19)*PwrCons1))/RatedMAP)*$AC148/RatedRPM)^PwrCons2)*((1+$T$5)*($N$5/$S$144)-$T$5)*SQRT((519-3.58*$S$143/1000)/(460+$S$142)),"") ->  | AP148: =IF(O148>0,((((RatedMAP-((RatedMAP-AP$19)*PwrCons1))/RatedMAP)*$AC148/RatedRPM)^PwrCons2)*((1+$T$5)*($N$5/$S$144)-$T$5)*SQRT((519-3.58*$S$143/1000)/(460+$S$142)),"") ->  | AQ148: =IF(P148>0,((((RatedMAP-((RatedMAP-AQ$19)*PwrCons1))/RatedMAP)*$AC148/RatedRPM)^PwrCons2)*((1+$T$5)*($N$5/$S$144)-$T$5)*SQRT((519-3.58*$S$143/1000)/(460+$S$142)),"") ->  | AR148: =IF(Q148>0,((((RatedMAP-((RatedMAP-AR$19)*PwrCons1))/RatedMAP)*$AC148/RatedRPM)^PwrCons2)*((1+$T$5)*($N$5/$S$144)-$T$5)*SQRT((519-3.58*$S$143/1000)/(460+$S$142)),"") ->  | AS148: =IF(R148>0,((((RatedMAP-((RatedMAP-AS$19)*PwrCons1))/RatedMAP)*$AC148/RatedRPM)^PwrCons2)*((1+$T$5)*($N$5/$S$144)-$T$5)*SQRT((519-3.58*$S$143/1000)/(460+$S$142)),"") ->  | AT148: =IF(S148>0,((((RatedMAP-((RatedMAP-AT$19)*PwrCons1))/RatedMAP)*$AC148/RatedRPM)^PwrCons2)*((1+$T$5)*($N$5/$S$144)-$T$5)*SQRT((519-3.58*$S$143/1000)/(460+$S$142)),"") ->  | AU148: =IF(T148>0,((((RatedMAP-((RatedMAP-AU$19)*PwrCons1))/RatedMAP)*$AC148/RatedRPM)^PwrCons2)*((1+$T$5)*($N$5/$S$144)-$T$5)*SQRT((519-3.58*$S$143/1000)/(460+$S$142)),"") ->  | AV148: =IF(U148>0,((((RatedMAP-((RatedMAP-AV$19)*PwrCons1))/RatedMAP)*$AC148/RatedRPM)^PwrCons2)*((1+$T$5)*($N$5/$S$144)-$T$5)*SQRT((519-3.58*$S$143/1000)/(460+$S$142)),"") ->  | AW148: =IF(V148>0,((((RatedMAP-((RatedMAP-AW$19)*PwrCons1))/RatedMAP)*$AC148/RatedRPM)^PwrCons2)*((1+$T$5)*($N$5/$S$144)-$T$5)*SQRT((519-3.58*$S$143/1000)/(460+$S$142)),"") ->  | AX148: =IF(W148>0,((((RatedMAP-((RatedMAP-AX$19)*PwrCons1))/RatedMAP)*$AC148/RatedRPM)^PwrCons2)*((1+$T$5)*($N$5/$S$144)-$T$5)*SQRT((519-3.58*$S$143/1000)/(460+$S$142)),"") ->  | AY148: =IF(X148>0,((((RatedMAP-((RatedMAP-AY$19)*PwrCons1))/RatedMAP)*$AC148/RatedRPM)^PwrCons2)*((1+$T$5)*($N$5/$S$144)-$T$5)*SQRT((519-3.58*$S$143/1000)/(460+$S$142)),"") ->  | AZ148: =IF(Y148>0,((((RatedMAP-((RatedMAP-AZ$19)*PwrCons1))/RatedMAP)*$AC148/RatedRPM)^PwrCons2)*((1+$T$5)*($N$5/$S$144)-$T$5)*SQRT((519-3.58*$S$143/1000)/(460+$S$142)),"") ->  | BA148: =IF(Z148>0,((((RatedMAP-((RatedMAP-BA$19)*PwrCons1))/RatedMAP)*$AC148/RatedRPM)^PwrCons2)*((1+$T$5)*($N$5/$S$144)-$T$5)*SQRT((519-3.58*$S$143/1000)/(460+$S$142)),"") -> 
B149: 2600 | AC149: 2600
B150: 2500 | AC150: 2500
B151: 2400 | AC151: 2400
B152: 2300 | AC152: 2300
B153: 2200 | AC153: 2200
B154: 2100 | AC154: 2100
B155: 2000 | AC155: 2000
B156: 1900 | AC156: 1900
B157: 1800 | AC157: 1800
AD158: =IF(C158>0,(((((RatedMAP-((RatedMAP-AD$19)*PwrCons1))/RatedMAP)*$AC158/RatedRPM)^PwrCons2)*(1+((-0.00045*AD$19) + 0.0265)*$S$143/1000) )*SQRT((519-3.58*$S$143/1000)/(460+$S$142)),"") -> 
A159: HP ROP % of RatedHP | C159: Manifold Pressure (inHg) | AB159: Difference | AD159: Manifold Pressure (Hg) | BK159: Difference for selected params
C160: 40 | D160: 39 | E160: 38 | F160: 37 | G160: 36 | H160: 35 | I160: 34 | J160: 33 | K160: 32 | L160: 31 | M160: 30 | N160: 29 | O160: 28 | P160: 27 | Q160: 26 | R160: 25 | S160: 24 | T160: 23 | U160: 22 | V160: 21 | W160: 20 | X160: 19 | Y160: 18 | Z160: 17 | AD160: 40 | AE160: 39 | AF160: 38 | AG160: 37 | AH160: 36 | AI160: 35 | AJ160: 34 | AK160: 33 | AL160: 32 | AM160: 31 | AN160: 30 | AO160: 29 | AP160: 28 | AQ160: 27 | AR160: 26 | AS160: 25 | AT160: 24 | AU160: 23 | AV160: 22 | AW160: 21 | AX160: 20 | AY160: 19 | AZ160: 18 | BA160: 17 | BM160: 40 | BN160: 39 | BO160: 38 | BP160: 37 | BQ160: 36 | BR160: 35 | BS160: 34 | BT160: 33 | BU160: 32 | BV160: 31 | BW160: 30 | BX160: 29 | BY160: 28 | BZ160: 27 | CA160: 26 | CB160: 25 | CC160: 24 | CD160: 23 | CE160: 22 | CF160: 21 | CG160: 20 | CH160: 19 | CI160: 18 | CJ160: 17
A161: RPM | B161: 2700 | C161: =IF(C148>0,C148/RatedHP,"") ->  | AB161: RPM | AC161: 2700 | AD161: =IF(C148>0,AD148-C161,"") ->  | AE161: =IF(D148>0,AE148-D161,"") ->  | AF161: =IF(E148>0,AF148-E161,"") ->  | AG161: =IF(F148>0,AG148-F161,"") ->  | AH161: =IF(G148>0,AH148-G161,"") ->  | AI161: =IF(H148>0,AI148-H161,"") ->  | AJ161: =IF(I148>0,AJ148-I161,"") ->  | AK161: =IF(J148>0,AK148-J161,"") ->  | AL161: =IF(K148>0,AL148-K161,"") ->  | AM161: =IF(L148>0,AM148-L161,"") ->  | AN161: =IF(M148>0,AN148-M161,"") ->  | AO161: =IF(N148>0,AO148-N161,"") ->  | AP161: =IF(O148>0,AP148-O161,"") ->  | AQ161: =IF(P148>0,AQ148-P161,"") ->  | AR161: =IF(Q148>0,AR148-Q161,"") ->  | AS161: =IF(R148>0,AS148-R161,"") ->  | AT161: =IF(S148>0,AT148-S161,"") ->  | AU161: =IF(T148>0,AU148-T161,"") ->  | AV161: =IF(U148>0,AV148-U161,"") ->  | AW161: =IF(V148>0,AW148-V161,"") ->  | AX161: =IF(W148>0,AX148-W161,"") ->  | AY161: =IF(X148>0,AY148-X161,"") ->  | AZ161: =IF(Y148>0,AZ148-Y161,"") ->  | BK161: RPM | BL161: 2700 | BM161: =IF(AND(BM$160<=$AG$144,BM$160>=$AF$144,$BL161<=$AG$145,$BL161>=$AF$145),AD161," ") ->  | BN161: =IF(AND(BN$160<=$AG$144,BN$160>=$AF$144,$BL161<=$AG$145,$BL161>=$AF$145),AE161," ") ->  | BO161: =IF(AND(BO$160<=$AG$144,BO$160>=$AF$144,$BL161<=$AG$145,$BL161>=$AF$145),AF161," ") ->  | BP161: =IF(AND(BP$160<=$AG$144,BP$160>=$AF$144,$BL161<=$AG$145,$BL161>=$AF$145),AG161," ") ->  | BQ161: =IF(AND(BQ$160<=$AG$144,BQ$160>=$AF$144,$BL161<=$AG$145,$BL161>=$AF$145),AH161," ") ->  | BR161: =IF(AND(BR$160<=$AG$144,BR$160>=$AF$144,$BL161<=$AG$145,$BL161>=$AF$145),AI161," ") ->  | BS161: =IF(AND(BS$160<=$AG$144,BS$160>=$AF$144,$BL161<=$AG$145,$BL161>=$AF$145),AJ161," ") ->  | BT161: =IF(AND(BT$160<=$AG$144,BT$160>=$AF$144,$BL161<=$AG$145,$BL161>=$AF$145),AK161," ") ->  | BU161: =IF(AND(BU$160<=$AG$144,BU$160>=$AF$144,$BL161<=$AG$145,$BL161>=$AF$145),AL161," ") ->  | BV161: =IF(AND(BV$160<=$AG$144,BV$160>=$AF$144,$BL161<=$AG$145,$BL161>=$AF$145),AM161," ") ->  | BW161: =IF(AND(BW$160<=$AG$144,BW$160>=$AF$144,$BL161<=$AG$145,$BL161>=$AF$145),AN161," ") ->  | BX161: =IF(AND(BX$160<=$AG$144,BX$160>=$AF$144,$BL161<=$AG$145,$BL161>=$AF$145),AO161," ") ->  | BY161: =IF(AND(BY$160<=$AG$144,BY$160>=$AF$144,$BL161<=$AG$145,$BL161>=$AF$145),AP161," ") ->  | BZ161: =IF(AND(BZ$160<=$AG$144,BZ$160>=$AF$144,$BL161<=$AG$145,$BL161>=$AF$145),AQ161," ") ->  | CA161: =IF(AND(CA$160<=$AG$144,CA$160>=$AF$144,$BL161<=$AG$145,$BL161>=$AF$145),AR161," ") ->  | CB161: =IF(AND(CB$160<=$AG$144,CB$160>=$AF$144,$BL161<=$AG$145,$BL161>=$AF$145),AS161," ") ->  | CC161: =IF(AND(CC$160<=$AG$144,CC$160>=$AF$144,$BL161<=$AG$145,$BL161>=$AF$145),AT161," ") ->  | CD161: =IF(AND(CD$160<=$AG$144,CD$160>=$AF$144,$BL161<=$AG$145,$BL161>=$AF$145),AU161," ") ->  | CE161: =IF(AND(CE$160<=$AG$144,CE$160>=$AF$144,$BL161<=$AG$145,$BL161>=$AF$145),AV161," ") ->  | CF161: =IF(AND(CF$160<=$AG$144,CF$160>=$AF$144,$BL161<=$AG$145,$BL161>=$AF$145),AW161," ") ->  | CG161: =IF(AND(CG$160<=$AG$144,CG$160>=$AF$144,$BL161<=$AG$145,$BL161>=$AF$145),AX161," ") ->  | CH161: =IF(AND(CH$160<=$AG$144,CH$160>=$AF$144,$BL161<=$AG$145,$BL161>=$AF$145),AY161," ") ->  | CI161: =IF(AND(CI$160<=$AG$144,CI$160>=$AF$144,$BL161<=$AG$145,$BL161>=$AF$145),AZ161," ") ->  | CJ161: =IF(AND(CJ$160<=$AG$144,CJ$160>=$AF$144,$BL161<=$AG$145,$BL161>=$AF$145),BA161," ") -> 
B162: 2600 | C162: =IF(C149>0,C149/RatedHP,"") ->  | AC162: 2600 | BL162: 2600 | BM162: =IF(AND(BM$160<=$AG$144,BM$160>=$AF$144,$BL162<=$AG$145,$BL162>=$AF$145),AD162," ") -> 
B163: 2500 | C163: =IF(C150>0,C150/RatedHP,"") ->  | AC163: 2500 | BL163: 2500
B164: 2400 | C164: =IF(C151>0,C151/RatedHP,"") ->  | AC164: 2400 | BL164: 2400
B165: 2300 | C165: =IF(C152>0,C152/RatedHP,"") ->  | AC165: 2300 | AZ165: =IF(Y152>0,AZ152-Y165,"") ->  | BA165: =IF(Z152>0,BA152-Z165,"") ->  | BL165: 2300
B166: 2200 | C166: =IF(C153>0,C153/RatedHP,"") ->  | AC166: 2200 | BL166: 2200
B167: 2100 | C167: =IF(C154>0,C154/RatedHP,"") ->  | AC167: 2100 | BL167: 2100
B168: 2000 | C168: =IF(C155>0,C155/RatedHP,"") ->  | AC168: 2000 | BL168: 2000
B169: 1900 | C169: =IF(C156>0,C156/RatedHP,"") ->  | AC169: 1900 | AY169: =IF(X156>0,AY156-X169,"") ->  | BL169: 1900
B170: 1800 | C170: =IF(C157>0,C157/RatedHP,"") ->  | AC170: 1800 | AY170: =IF(X157>0,AY157-X170,"") ->  | BL170: 1800
A174: Data set ref: | C174: ISA conditions (-35degC / 25000ft PA) | M174: Chart parameters: | R174: Temp: | S174: -31 degF | AB174: =CONCATENATE("Derived data set for ",C174) -> Derived data set for ISA conditions (-35degC / 25000ft PA)
R175: Press alt: | S175: 25000 ft | AC175: Selected parameter ranges for testing match accuracy:
S176: =((0.00000001187*(S175^2))-(0.001052*S175)+29.92)*33.865 -> (374 hPa) | AE176: Min / max MAP: | AF176: 19 | AG176: 25 | AI176: Average absolute error: | AM176: =IF(SUM(BM193:CJ202)=0," ",AVERAGE(BM193:CJ202)) ->  | AZ176: Alt factor: | BA176: =((1+$T$5)*($N$5/$S176)-$T$5) -> 1.52
AE177: Min/max RPM: | AF177: 2100 | AG177: 2500 | AI177: Max absolute error: | AM177: =IF(AM176=" "," ",MAX(ABS(MIN(BM193:CJ202)),ABS(MAX(BM193:CJ202)))) ->  | AZ177: Temp factor: | BA177: =SQRT((519-3.58*$S175/1000)/(460+$S174)) -> 1.00
A178: ~HP ROP as per Power Chart | C178: Manifold Pressure (inHg) | AB178: ~HP as per rev Formula with pa&ta | AD178: Manifold Pressure (Hg)
C179: 40 | D179: 39 | E179: 38 | F179: 37 | G179: 36 | H179: 35 | I179: 34 | J179: 33 | K179: 32 | L179: 31 | M179: 30 | N179: 29 | O179: 28 | P179: 27 | Q179: 26 | R179: 25 | S179: 24 | T179: 23 | U179: 22 | V179: 21 | W179: 20 | X179: 19 | Y179: 18 | Z179: 17 | AD179: 40 | AE179: 39 | AF179: 38 | AG179: 37 | AH179: 36 | AI179: 35 | AJ179: 34 | AK179: 33 | AL179: 32 | AM179: 31 | AN179: 30 | AO179: 29 | AP179: 28 | AQ179: 27 | AR179: 26 | AS179: 25 | AT179: 24 | AU179: 23 | AV179: 22 | AW179: 21 | AX179: 20 | AY179: 19 | AZ179: 18 | BA179: 17
A180: RPM | B180: 2700 | AB180: RPM | AC180: 2700 | AD180: =IF(C180>0,((((RatedMAP-((RatedMAP-AD$19)*PwrCons1))/RatedMAP)*$AC180/RatedRPM)^PwrCons2)*((1+$T$5)*($N$5/$S$176)-$T$5)*SQRT((519-3.58*$S$175/1000)/(460+$S$174)),"") ->  | AE180: =IF(D180>0,((((RatedMAP-((RatedMAP-AE$19)*PwrCons1))/RatedMAP)*$AC180/RatedRPM)^PwrCons2)*((1+$T$5)*($N$5/$S$176)-$T$5)*SQRT((519-3.58*$S$175/1000)/(460+$S$174)),"") ->  | AF180: =IF(E180>0,((((RatedMAP-((RatedMAP-AF$19)*PwrCons1))/RatedMAP)*$AC180/RatedRPM)^PwrCons2)*((1+$T$5)*($N$5/$S$176)-$T$5)*SQRT((519-3.58*$S$175/1000)/(460+$S$174)),"") ->  | AG180: =IF(F180>0,((((RatedMAP-((RatedMAP-AG$19)*PwrCons1))/RatedMAP)*$AC180/RatedRPM)^PwrCons2)*((1+$T$5)*($N$5/$S$176)-$T$5)*SQRT((519-3.58*$S$175/1000)/(460+$S$174)),"") ->  | AH180: =IF(G180>0,((((RatedMAP-((RatedMAP-AH$19)*PwrCons1))/RatedMAP)*$AC180/RatedRPM)^PwrCons2)*((1+$T$5)*($N$5/$S$176)-$T$5)*SQRT((519-3.58*$S$175/1000)/(460+$S$174)),"") ->  | AI180: =IF(H180>0,((((RatedMAP-((RatedMAP-AI$19)*PwrCons1))/RatedMAP)*$AC180/RatedRPM)^PwrCons2)*((1+$T$5)*($N$5/$S$176)-$T$5)*SQRT((519-3.58*$S$175/1000)/(460+$S$174)),"") ->  | AJ180: =IF(I180>0,((((RatedMAP-((RatedMAP-AJ$19)*PwrCons1))/RatedMAP)*$AC180/RatedRPM)^PwrCons2)*((1+$T$5)*($N$5/$S$176)-$T$5)*SQRT((519-3.58*$S$175/1000)/(460+$S$174)),"") ->  | AK180: =IF(J180>0,((((RatedMAP-((RatedMAP-AK$19)*PwrCons1))/RatedMAP)*$AC180/RatedRPM)^PwrCons2)*((1+$T$5)*($N$5/$S$176)-$T$5)*SQRT((519-3.58*$S$175/1000)/(460+$S$174)),"") ->  | AL180: =IF(K180>0,((((RatedMAP-((RatedMAP-AL$19)*PwrCons1))/RatedMAP)*$AC180/RatedRPM)^PwrCons2)*((1+$T$5)*($N$5/$S$176)-$T$5)*SQRT((519-3.58*$S$175/1000)/(460+$S$174)),"") ->  | AM180: =IF(L180>0,((((RatedMAP-((RatedMAP-AM$19)*PwrCons1))/RatedMAP)*$AC180/RatedRPM)^PwrCons2)*((1+$T$5)*($N$5/$S$176)-$T$5)*SQRT((519-3.58*$S$175/1000)/(460+$S$174)),"") ->  | AN180: =IF(M180>0,((((RatedMAP-((RatedMAP-AN$19)*PwrCons1))/RatedMAP)*$AC180/RatedRPM)^PwrCons2)*((1+$T$5)*($N$5/$S$176)-$T$5)*SQRT((519-3.58*$S$175/1000)/(460+$S$174)),"") ->  | AO180: =IF(N180>0,((((RatedMAP-((RatedMAP-AO$19)*PwrCons1))/RatedMAP)*$AC180/RatedRPM)^PwrCons2)*((1+$T$5)*($N$5/$S$176)-$T$5)*SQRT((519-3.58*$S$175/1000)/(460+$S$174)),"") ->  | AP180: =IF(O180>0,((((RatedMAP-((RatedMAP-AP$19)*PwrCons1))/RatedMAP)*$AC180/RatedRPM)^PwrCons2)*((1+$T$5)*($N$5/$S$176)-$T$5)*SQRT((519-3.58*$S$175/1000)/(460+$S$174)),"") ->  | AQ180: =IF(P180>0,((((RatedMAP-((RatedMAP-AQ$19)*PwrCons1))/RatedMAP)*$AC180/RatedRPM)^PwrCons2)*((1+$T$5)*($N$5/$S$176)-$T$5)*SQRT((519-3.58*$S$175/1000)/(460+$S$174)),"") ->  | AR180: =IF(Q180>0,((((RatedMAP-((RatedMAP-AR$19)*PwrCons1))/RatedMAP)*$AC180/RatedRPM)^PwrCons2)*((1+$T$5)*($N$5/$S$176)-$T$5)*SQRT((519-3.58*$S$175/1000)/(460+$S$174)),"") ->  | AS180: =IF(R180>0,((((RatedMAP-((RatedMAP-AS$19)*PwrCons1))/RatedMAP)*$AC180/RatedRPM)^PwrCons2)*((1+$T$5)*($N$5/$S$176)-$T$5)*SQRT((519-3.58*$S$175/1000)/(460+$S$174)),"") ->  | AT180: =IF(S180>0,((((RatedMAP-((RatedMAP-AT$19)*PwrCons1))/RatedMAP)*$AC180/RatedRPM)^PwrCons2)*((1+$T$5)*($N$5/$S$176)-$T$5)*SQRT((519-3.58*$S$175/1000)/(460+$S$174)),"") ->  | AU180: =IF(T180>0,((((RatedMAP-((RatedMAP-AU$19)*PwrCons1))/RatedMAP)*$AC180/RatedRPM)^PwrCons2)*((1+$T$5)*($N$5/$S$176)-$T$5)*SQRT((519-3.58*$S$175/1000)/(460+$S$174)),"") ->  | AV180: =IF(U180>0,((((RatedMAP-((RatedMAP-AV$19)*PwrCons1))/RatedMAP)*$AC180/RatedRPM)^PwrCons2)*((1+$T$5)*($N$5/$S$176)-$T$5)*SQRT((519-3.58*$S$175/1000)/(460+$S$174)),"") ->  | AW180: =IF(V180>0,((((RatedMAP-((RatedMAP-AW$19)*PwrCons1))/RatedMAP)*$AC180/RatedRPM)^PwrCons2)*((1+$T$5)*($N$5/$S$176)-$T$5)*SQRT((519-3.58*$S$175/1000)/(460+$S$174)),"") ->  | AX180: =IF(W180>0,((((RatedMAP-((RatedMAP-AX$19)*PwrCons1))/RatedMAP)*$AC180/RatedRPM)^PwrCons2)*((1+$T$5)*($N$5/$S$176)-$T$5)*SQRT((519-3.58*$S$175/1000)/(460+$S$174)),"") ->  | AY180: =IF(X180>0,((((RatedMAP-((RatedMAP-AY$19)*PwrCons1))/RatedMAP)*$AC180/RatedRPM)^PwrCons2)*((1+$T$5)*($N$5/$S$176)-$T$5)*SQRT((519-3.58*$S$175/1000)/(460+$S$174)),"") ->  | AZ180: =IF(Y180>0,((((RatedMAP-((RatedMAP-AZ$19)*PwrCons1))/RatedMAP)*$AC180/RatedRPM)^PwrCons2)*((1+$T$5)*($N$5/$S$176)-$T$5)*SQRT((519-3.58*$S$175/1000)/(460+$S$174)),"") ->  | BA180: =IF(Z180>0,((((RatedMAP-((RatedMAP-BA$19)*PwrCons1))/RatedMAP)*$AC180/RatedRPM)^PwrCons2)*((1+$T$5)*($N$5/$S$176)-$T$5)*SQRT((519-3.58*$S$175/1000)/(460+$S$174)),"") -> 
B181: 2600 | AC181: 2600
B182: 2500 | AC182: 2500
B183: 2400 | AC183: 2400
B184: 2300 | AC184: 2300
B185: 2200 | AC185: 2200
B186: 2100 | AC186: 2100
B187: 2000 | AC187: 2000
B188: 1900 | AC188: 1900
B189: 1800 | AC189: 1800
A191: HP ROP % of RatedHP | C191: Manifold Pressure (inHg) | AB191: Difference | AD191: Manifold Pressure (Hg) | BK191: Difference for selected params
C192: 40 | D192: 39 | E192: 38 | F192: 37 | G192: 36 | H192: 35 | I192: 34 | J192: 33 | K192: 32 | L192: 31 | M192: 30 | N192: 29 | O192: 28 | P192: 27 | Q192: 26 | R192: 25 | S192: 24 | T192: 23 | U192: 22 | V192: 21 | W192: 20 | X192: 19 | Y192: 18 | Z192: 17 | AD192: 40 | AE192: 39 | AF192: 38 | AG192: 37 | AH192: 36 | AI192: 35 | AJ192: 34 | AK192: 33 | AL192: 32 | AM192: 31 | AN192: 30 | AO192: 29 | AP192: 28 | AQ192: 27 | AR192: 26 | AS192: 25 | AT192: 24 | AU192: 23 | AV192: 22 | AW192: 21 | AX192: 20 | AY192: 19 | AZ192: 18 | BA192: 17 | BM192: 40 | BN192: 39 | BO192: 38 | BP192: 37 | BQ192: 36 | BR192: 35 | BS192: 34 | BT192: 33 | BU192: 32 | BV192: 31 | BW192: 30 | BX192: 29 | BY192: 28 | BZ192: 27 | CA192: 26 | CB192: 25 | CC192: 24 | CD192: 23 | CE192: 22 | CF192: 21 | CG192: 20 | CH192: 19 | CI192: 18 | CJ192: 17
A193: RPM | B193: 2700 | C193: =IF(C180>0,C180/RatedHP,"") ->  | AB193: RPM | AC193: 2700 | AD193: =IF(C180>0,AD180-C193,"") ->  | AE193: =IF(D180>0,AE180-D193,"") ->  | AF193: =IF(E180>0,AF180-E193,"") ->  | AG193: =IF(F180>0,AG180-F193,"") ->  | AH193: =IF(G180>0,AH180-G193,"") ->  | AI193: =IF(H180>0,AI180-H193,"") ->  | AJ193: =IF(I180>0,AJ180-I193,"") ->  | AK193: =IF(J180>0,AK180-J193,"") ->  | AL193: =IF(K180>0,AL180-K193,"") ->  | AM193: =IF(L180>0,AM180-L193,"") ->  | AN193: =IF(M180>0,AN180-M193,"") ->  | AO193: =IF(N180>0,AO180-N193,"") ->  | AP193: =IF(O180>0,AP180-O193,"") ->  | AQ193: =IF(P180>0,AQ180-P193,"") ->  | AR193: =IF(Q180>0,AR180-Q193,"") ->  | AS193: =IF(R180>0,AS180-R193,"") ->  | AT193: =IF(S180>0,AT180-S193,"") ->  | AU193: =IF(T180>0,AU180-T193,"") ->  | AV193: =IF(U180>0,AV180-U193,"") ->  | AW193: =IF(V180>0,AW180-V193,"") ->  | AX193: =IF(W180>0,AX180-W193,"") ->  | AY193: =IF(X180>0,AY180-X193,"") ->  | AZ193: =IF(Y180>0,AZ180-Y193,"") ->  | BK193: RPM | BL193: 2700 | BM193: =IF(AND(BM$192<=$AG$176,BM$192>=$AF$176,$BL193<=$AG$177,$BL193>=$AF$177),AD193," ") ->  | BN193: =IF(AND(BN$192<=$AG$176,BN$192>=$AF$176,$BL193<=$AG$177,$BL193>=$AF$177),AE193," ") ->  | BO193: =IF(AND(BO$192<=$AG$176,BO$192>=$AF$176,$BL193<=$AG$177,$BL193>=$AF$177),AF193," ") ->  | BP193: =IF(AND(BP$192<=$AG$176,BP$192>=$AF$176,$BL193<=$AG$177,$BL193>=$AF$177),AG193," ") ->  | BQ193: =IF(AND(BQ$192<=$AG$176,BQ$192>=$AF$176,$BL193<=$AG$177,$BL193>=$AF$177),AH193," ") ->  | BR193: =IF(AND(BR$192<=$AG$176,BR$192>=$AF$176,$BL193<=$AG$177,$BL193>=$AF$177),AI193," ") ->  | BS193: =IF(AND(BS$192<=$AG$176,BS$192>=$AF$176,$BL193<=$AG$177,$BL193>=$AF$177),AJ193," ") ->  | BT193: =IF(AND(BT$192<=$AG$176,BT$192>=$AF$176,$BL193<=$AG$177,$BL193>=$AF$177),AK193," ") ->  | BU193: =IF(AND(BU$192<=$AG$176,BU$192>=$AF$176,$BL193<=$AG$177,$BL193>=$AF$177),AL193," ") ->  | BV193: =IF(AND(BV$192<=$AG$176,BV$192>=$AF$176,$BL193<=$AG$177,$BL193>=$AF$177),AM193," ") ->  | BW193: =IF(AND(BW$192<=$AG$176,BW$192>=$AF$176,$BL193<=$AG$177,$BL193>=$AF$177),AN193," ") ->  | BX193: =IF(AND(BX$192<=$AG$176,BX$192>=$AF$176,$BL193<=$AG$177,$BL193>=$AF$177),AO193," ") ->  | BY193: =IF(AND(BY$192<=$AG$176,BY$192>=$AF$176,$BL193<=$AG$177,$BL193>=$AF$177),AP193," ") ->  | BZ193: =IF(AND(BZ$192<=$AG$176,BZ$192>=$AF$176,$BL193<=$AG$177,$BL193>=$AF$177),AQ193," ") ->  | CA193: =IF(AND(CA$192<=$AG$176,CA$192>=$AF$176,$BL193<=$AG$177,$BL193>=$AF$177),AR193," ") ->  | CB193: =IF(AND(CB$192<=$AG$176,CB$192>=$AF$176,$BL193<=$AG$177,$BL193>=$AF$177),AS193," ") ->  | CC193: =IF(AND(CC$192<=$AG$176,CC$192>=$AF$176,$BL193<=$AG$177,$BL193>=$AF$177),AT193," ") ->  | CD193: =IF(AND(CD$192<=$AG$176,CD$192>=$AF$176,$BL193<=$AG$177,$BL193>=$AF$177),AU193," ") ->  | CE193: =IF(AND(CE$192<=$AG$176,CE$192>=$AF$176,$BL193<=$AG$177,$BL193>=$AF$177),AV193," ") ->  | CF193: =IF(AND(CF$192<=$AG$176,CF$192>=$AF$176,$BL193<=$AG$177,$BL193>=$AF$177),AW193," ") ->  | CG193: =IF(AND(CG$192<=$AG$176,CG$192>=$AF$176,$BL193<=$AG$177,$BL193>=$AF$177),AX193," ") ->  | CH193: =IF(AND(CH$192<=$AG$176,CH$192>=$AF$176,$BL193<=$AG$177,$BL193>=$AF$177),AY193," ") ->  | CI193: =IF(AND(CI$192<=$AG$176,CI$192>=$AF$176,$BL193<=$AG$177,$BL193>=$AF$177),AZ193," ") ->  | CJ193: =IF(AND(CJ$192<=$AG$176,CJ$192>=$AF$176,$BL193<=$AG$177,$BL193>=$AF$177),BA193," ") -> 
B194: 2600 | C194: =IF(C181>0,C181/RatedHP,"") ->  | AC194: 2600 | BL194: 2600 | BM194: =IF(AND(BM$192<=$AG$176,BM$192>=$AF$176,$BL194<=$AG$177,$BL194>=$AF$177),AD194," ") -> 
B195: 2500 | C195: =IF(C182>0,C182/RatedHP,"") ->  | AC195: 2500 | BL195: 2500
B196: 2400 | C196: =IF(C183>0,C183/RatedHP,"") ->  | AC196: 2400 | BL196: 2400
B197: 2300 | C197: =IF(C184>0,C184/RatedHP,"") ->  | AC197: 2300 | AZ197: =IF(Y184>0,AZ184-Y197,"") ->  | BA197: =IF(Z184>0,BA184-Z197,"") ->  | BL197: 2300
B198: 2200 | C198: =IF(C185>0,C185/RatedHP,"") ->  | AC198: 2200 | BL198: 2200
B199: 2100 | C199: =IF(C186>0,C186/RatedHP,"") ->  | AC199: 2100 | BL199: 2100
B200: 2000 | C200: =IF(C187>0,C187/RatedHP,"") ->  | AC200: 2000 | BL200: 2000
B201: 1900 | C201: =IF(C188>0,C188/RatedHP,"") ->  | AC201: 1900 | AY201: =IF(X188>0,AY188-X201,"") ->  | BL201: 1900
B202: 1800 | C202: =IF(C189>0,C189/RatedHP,"") ->  | AC202: 1800 | AY202: =IF(X189>0,AY189-X202,"") ->  | BL202: 1800
